Workbook

Sheet Pedidos
A1: Fecha | B1: Producto | C1: Sabor | D1: Cantidad | H1: Producto | J1: Producto | K1: IPLAY MAX
A2: 2022-05-19 | B2: IPLAY MAX | C2: Energy Ice | D2: 0 | H2: IPLAY MAX
A3: 2022-05-19 | B3: IPLAY MAX | C3: Sour Apple Melon | D3: 0 | J3: Etiquetas de fila
A4: 2022-05-19 | B4: IPLAY MAX | C4: Cool Mint | D4: 0 | J4: Banana Ice
A5: 2022-05-19 | B5: IPLAY MAX | C5: GrapeFruit Berry | D5: 0 | J5: Berry Watermelon
A6: 2022-05-19 | B6: IPLAY MAX | C6: Lush Ice | D6: 0 | J6: Bluerazz
A7: 2022-05-19 | B7: IPLAY MAX | C7: StrawBerry Lychee | D7: 0 | J7: Coconut
A8: 2022-05-19 | B8: IPLAY MAX | C8: Energy Ice | D8: 4 | J8: Cool Mint
A9: 2022-05-19 | B9: IPLAY MAX | C9: Sour Apple Melon | D9: 3 | J9: Energy Ice
A10: 2022-05-19 | B10: IPLAY MAX | C10: Cool Mint | D10: 2 | J10: Grape Ice
A11: 2022-05-19 | B11: IPLAY MAX | C11: GrapeFruit Berry | D11: 4 | J11: GrapeFruit Berry
A12: 2022-05-19 | B12: IPLAY MAX | C12: Lush Ice | D12: 3 | J12: Grapestraw
A13: 2022-05-19 | B13: IPLAY MAX | C13: StrawBerry Lychee | D13: 1 | J13: Guava
A14: 2022-06-02 | B14: IPLAY MAX | C14: Sour Apple Melon | D14: 10 | J14: Lemon Cucumber
A15: 2022-06-02 | B15: IPLAY MAX | C15: StrawBerry Lychee | D15: 10 | J15: Lush Ice
A16: 2022-06-02 | B16: IPLAY MAX | C16: Guava | D16: 10 | J16: Mango Ice
A17: 2022-06-02 | B17: IPLAY MAX | C17: Bluerazz | D17: 10 | J17: Orange Ice
A18: 2022-06-02 | B18: IPLAY MAX | C18: GrapeFruit Berry | D18: 10 | J18: Passion Fruit
A19: 2022-06-02 | B19: IPLAY MAX | C19: Grapestraw | D19: 10 | J19: Peach Ice
A20: 2022-06-02 | B20: IPLAY MAX | C20: Cool Mint | D20: 10 | J20: Sour Apple Melon
A21: 2022-06-02 | B21: IPLAY MAX | C21: Peach Ice | D21: 10 | J21: StrawBerry Lychee
A22: 2022-06-24 | B22: IPLAY MAX | C22: Energy Ice | D22: 15
A23: 2022-06-24 | B23: IPLAY MAX | C23: Sour Apple Melon | D23: 10
A24: 2022-06-24 | B24: IPLAY MAX | C24: Berry Watermelon | D24: 20
A25: 2022-06-24 | B25: IPLAY MAX | C25: Guava | D25: 5
A26: 2022-06-24 | B26: IPLAY MAX | C26: Bluerazz | D26: 15
A27: 2022-06-24 | B27: IPLAY MAX | C27: GrapeFruit Berry | D27: 10
A28: 2022-06-24 | B28: IPLAY MAX | C28: Grapestraw | D28: 10
A29: 2022-06-24 | B29: IPLAY MAX | C29: Cool Mint | D29: 25
A30: 2022-06-24 | B30: IPLAY MAX | C30: Coconut | D30: 20
A31: 2022-06-24 | B31: IPLAY MAX | C31: Lemon Cucumber | D31: 10
A32: 2022-06-24 | B32: IPLAY MAX | C32: Grape Ice | D32: 20
A33: 2022-06-24 | B33: IPLAY MAX | C33: Orange Ice | D33: 10
A34: 2022-06-24 | B34: IPLAY MAX | C34: Peach Ice | D34: 10
A35: 2022-06-24 | B35: IPLAY MAX | C35: Mango Ice | D35: 6
A36: 2022-06-24 | B36: IPLAY MAX | C36: Banana Ice | D36: 10
A37: 2022-06-24 | B37: IPLAY MAX | C37: Passion Fruit | D37: 4
A38: 2022-06-28 | B38: IPLAY MAX | C38: Bluerazz | D38: 10
A39: 2022-06-28 | B39: IPLAY MAX | C39: GrapeFruit Berry | D39: 10
A40: 2022-06-28 | B40: IPLAY MAX | C40: Grapestraw | D40: 10
A41: 2022-06-28 | B41: IPLAY MAX | C41: Cool Mint | D41: 15
A42: 2022-06-28 | B42: IPLAY MAX | C42: Grape Ice | D42: 10
A43: 2022-06-28 | B43: IPLAY MAX | C43: Peach Ice | D43: 10 | F43: =SUM(D22:D43) -> 265

Sheet Ventas Menudeo
A1: Tipo | B1: Precio de venta
A2: IPLAY CUBE | B2: 190
A3: IPLAY MAX | B3: 260
A4: ELF BAR | B4: 275
A5: Fecha | B5: Vendedor | C5: Producto | D5: Sabor | E5: Cantidad | F5: Promoción | G5: Persona recomendo | H5: Descuento | I5: Precio de Venta | J5: Venta Total | K5: Transferencia | L5: Efectivo
A6: 2022-04-24 | B6: Julio | C6: IPLAY MAX | D6: Energy Ice | E6: 1 | H6: 0 | I6: =_xlfn.IFNA(VLOOKUP(VentasMenudeo[[#This Row],[Producto]],$A$2:$B$4,2,FALSE),0) -> 260 | J6: =_xlfn.IFNA(_xlfn.IFS(VentasMenudeo[[#This Row],[Producto]]=$A$2,VentasMenudeo[[#This Row],[Precio de Venta]]*VentasMenudeo[[#This Row],[Cantidad]]-VentasMenudeo[[#This Row],[Descuento]],VentasMenudeo[[#This Row],[Producto]]=$A$3,VentasMenudeo[[#This Row],[Precio de Venta]]*VentasMenudeo[[#This Row],[Cantidad]]-VentasMenudeo[[#This Row],[Descuento]],VentasMenudeo[[#This Row],[Producto]]=$A$4,VentasMenudeo[[#This Row],[Precio de Venta]]*VentasMenudeo[[#This Row],[Cantidad]]-VentasMenudeo[[#This Row],[Descuento]]),0) -> 260 | K6: 260
A7: 2022-04-24 | B7: Julio | C7: IPLAY MAX | D7: Lush Ice | E7: 1 | H7: 0 | I7: =_xlfn.IFNA(VLOOKUP(VentasMenudeo[[#This Row],[Producto]],$A$2:$B$4,2,FALSE),0) -> 260 | J7: =_xlfn.IFNA(_xlfn.IFS(VentasMenudeo[[#This Row],[Producto]]=$A$2,VentasMenudeo[[#This Row],[Precio de Venta]]*VentasMenudeo[[#This Row],[Cantidad]]-VentasMenudeo[[#This Row],[Descuento]],VentasMenudeo[[#This Row],[Producto]]=$A$3,VentasMenudeo[[#This Row],[Precio de Venta]]*VentasMenudeo[[#This Row],[Cantidad]]-VentasMenudeo[[#This Row],[Descuento]],VentasMenudeo[[#This Row],[Producto]]=$A$4,VentasMenudeo[[#This Row],[Precio de Venta]]*VentasMenudeo[[#This Row],[Cantidad]]-VentasMenudeo[[#This Row],[Descuento]]),0) -> 260 | K7: 260
A8: 2022-04-24 | B8: Claudia | C8: IPLAY MAX | D8: GrapeFruit Berry | E8: 1 | H8: 0 | I8: =_xlfn.IFNA(VLOOKUP(VentasMenudeo[[#This Row],[Producto]],$A$2:$B$4,2,FALSE),0) -> 260 | J8: =_xlfn.IFNA(_xlfn.IFS(VentasMenudeo[[#This Row],[Producto]]=$A$2,VentasMenudeo[[#This Row],[Precio de Venta]]*VentasMenudeo[[#This Row],[Cantidad]]-VentasMenudeo[[#This Row],[Descuento]],VentasMenudeo[[#This Row],[Producto]]=$A$3,VentasMenudeo[[#This Row],[Precio de Venta]]*VentasMenudeo[[#This Row],[Cantidad]]-VentasMenudeo[[#This Row],[Descuento]],VentasMenudeo[[#This Row],[Producto]]=$A$4,VentasMenudeo[[#This Row],[Precio de Venta]]*VentasMenudeo[[#This Row],[Cantidad]]-VentasMenudeo[[#This Row],[Descuento]]),0) -> 260 | L8: 260
A9: 2022-04-26 | B9: Claudia | C9: IPLAY MAX | D9: GrapeFruit Berry | E9: 1 | H9: 0 | I9: =_xlfn.IFNA(VLOOKUP(VentasMenudeo[[#This Row],[Producto]],$A$2:$B$4,2,FALSE),0) -> 260 | J9: =_xlfn.IFNA(_xlfn.IFS(VentasMenudeo[[#This Row],[Producto]]=$A$2,VentasMenudeo[[#This Row],[Precio de Venta]]*VentasMenudeo[[#This Row],[Cantidad]]-VentasMenudeo[[#This Row],[Descuento]],VentasMenudeo[[#This Row],[Producto]]=$A$3,VentasMenudeo[[#This Row],[Precio de Venta]]*VentasMenudeo[[#This Row],[Cantidad]]-VentasMenudeo[[#This Row],[Descuento]],VentasMenudeo[[#This Row],[Producto]]=$A$4,VentasMenudeo[[#This Row],[Precio de Venta]]*VentasMenudeo[[#This Row],[Cantidad]]-VentasMenudeo[[#This Row],[Descuento]]),0) -> 260 | L9: 260
A10: 2022-04-26 | B10: Claudia | C10: IPLAY MAX | D10: Cool Mint | E10: 1 | H10: 0 | I10: =_xlfn.IFNA(VLOOKUP(VentasMenudeo[[#This Row],[Producto]],$A$2:$B$4,2,FALSE),0) -> 260 | J10: =_xlfn.IFNA(_xlfn.IFS(VentasMenudeo[[#This Row],[Producto]]=$A$2,VentasMenudeo[[#This Row],[Precio de Venta]]*VentasMenudeo[[#This Row],[Cantidad]]-VentasMenudeo[[#This Row],[Descuento]],VentasMenudeo[[#This Row],[Producto]]=$A$3,VentasMenudeo[[#This Row],[Precio de Venta]]*VentasMenudeo[[#This Row],[Cantidad]]-VentasMenudeo[[#This Row],[Descuento]],VentasMenudeo[[#This Row],[Producto]]=$A$4,VentasMenudeo[[#This Row],[Precio de Venta]]*VentasMenudeo[[#This Row],[Cantidad]]-VentasMenudeo[[#This Row],[Descuento]]),0) -> 260 | L10: 260
A11: 2022-04-27 | B11: Claudia | C11: IPLAY MAX | D11: Cool Mint | E11: 1 | F11: $20 Descuento | H11: 20 | I11: =_xlfn.IFNA(VLOOKUP(VentasMenudeo[[#This Row],[Producto]],$A$2:$B$4,2,FALSE),0) -> 260 | J11: =_xlfn.IFNA(_xlfn.IFS(VentasMenudeo[[#This Row],[Producto]]=$A$2,VentasMenudeo[[#This Row],[Precio de Venta]]*VentasMenudeo[[#This Row],[Cantidad]]-VentasMenudeo[[#This Row],[Descuento]],VentasMenudeo[[#This Row],[Producto]]=$A$3,VentasMenudeo[[#This Row],[Precio de Venta]]*VentasMenudeo[[#This Row],[Cantidad]]-VentasMenudeo[[#This Row],[Descuento]],VentasMenudeo[[#This Row],[Producto]]=$A$4,VentasMenudeo[[#This Row],[Precio de Venta]]*VentasMenudeo[[#This Row],[Cantidad]]-VentasMenudeo[[#This Row],[Descuento]]),0) -> 240 | L11: 240
A12: 2022-04-29 | B12: Julio | C12: IPLAY MAX | D12: Lush Ice | E12: 1 | H12: 0 | I12: =_xlfn.IFNA(VLOOKUP(VentasMenudeo[[#This Row],[Producto]],$A$2:$B$4,2,FALSE),0) -> 260 | J12: =_xlfn.IFNA(_xlfn.IFS(VentasMenudeo[[#This Row],[Producto]]=$A$2,VentasMenudeo[[#This Row],[Precio de Venta]]*VentasMenudeo[[#This Row],[Cantidad]]-VentasMenudeo[[#This Row],[Descuento]],VentasMenudeo[[#This Row],[Producto]]=$A$3,VentasMenudeo[[#This Row],[Precio de Venta]]*VentasMenudeo[[#This Row],[Cantidad]]-VentasMenudeo[[#This Row],[Descuento]],VentasMenudeo[[#This Row],[Producto]]=$A$4,VentasMenudeo[[#This Row],[Precio de Venta]]*VentasMenudeo[[#This Row],[Cantidad]]-VentasMenudeo[[#This Row],[Descuento]]),0) -> 260 | K12: 260
A13: 2022-04-30 | B13: Julio | C13: IPLAY MAX | D13: Lush Ice | E13: 1 | H13: 60 | I13: =_xlfn.IFNA(VLOOKUP(VentasMenudeo[[#This Row],[Producto]],$A$2:$B$4,2,FALSE),0) -> 260 | J13: =_xlfn.IFNA(_xlfn.IFS(VentasMenudeo[[#This Row],[Producto]]=$A$2,VentasMenudeo[[#This Row],[Precio de Venta]]*VentasMenudeo[[#This Row],[Cantidad]]-VentasMenudeo[[#This Row],[Descuento]],VentasMenudeo[[#This Row],[Producto]]=$A$3,VentasMenudeo[[#This Row],[Precio de Venta]]*VentasMenudeo[[#This Row],[Cantidad]]-VentasMenudeo[[#This Row],[Descuento]],VentasMenudeo[[#This Row],[Producto]]=$A$4,VentasMenudeo[[#This Row],[Precio de Venta]]*VentasMenudeo[[#This Row],[Cantidad]]-VentasMenudeo[[#This Row],[Descuento]]),0) -> 200 | K13: 200
A14: 2022-05-05 | B14: Julio | C14: IPLAY MAX | D14: StrawBerry Lychee | E14: 1 | F14: $20 Descuento | H14: 20 | I14: =_xlfn.IFNA(VLOOKUP(VentasMenudeo[[#This Row],[Producto]],$A$2:$B$4,2,FALSE),0) -> 260 | J14: =_xlfn.IFNA(_xlfn.IFS(VentasMenudeo[[#This Row],[Producto]]=$A$2,VentasMenudeo[[#This Row],[Precio de Venta]]*VentasMenudeo[[#This Row],[Cantidad]]-VentasMenudeo[[#This Row],[Descuento]],VentasMenudeo[[#This Row],[Producto]]=$A$3,VentasMenudeo[[#This Row],[Precio de Venta]]*VentasMenudeo[[#This Row],[Cantidad]]-VentasMenudeo[[#This Row],[Descuento]],VentasMenudeo[[#This Row],[Producto]]=$A$4,VentasMenudeo[[#This Row],[Precio de Venta]]*VentasMenudeo[[#This Row],[Cantidad]]-VentasMenudeo[[#This Row],[Descuento]]),0) -> 240 | K14: 240
A15: 2022-05-06 | B15: Claudia | C15: IPLAY MAX | D15: Sour Apple Melon | E15: 1 | H15: 0 | I15: =_xlfn.IFNA(VLOOKUP(VentasMenudeo[[#This Row],[Producto]],$A$2:$B$4,2,FALSE),0) -> 260 | J15: =_xlfn.IFNA(_xlfn.IFS(VentasMenudeo[[#This Row],[Producto]]=$A$2,VentasMenudeo[[#This Row],[Precio de Venta]]*VentasMenudeo[[#This Row],[Cantidad]]-VentasMenudeo[[#This Row],[Descuento]],VentasMenudeo[[#This Row],[Producto]]=$A$3,VentasMenudeo[[#This Row],[Precio de Venta]]*VentasMenudeo[[#This Row],[Cantidad]]-VentasMenudeo[[#This Row],[Descuento]],VentasMenudeo[[#This Row],[Producto]]=$A$4,VentasMenudeo[[#This Row],[Precio de Venta]]*VentasMenudeo[[#This Row],[Cantidad]]-VentasMenudeo[[#This Row],[Descuento]]),0) -> 260 | L15: 260
A16: 2022-05-06 | B16: Julio | C16: IPLAY MAX | D16: Energy Ice | E16: 1 | H16: 0 | I16: =_xlfn.IFNA(VLOOKUP(VentasMenudeo[[#This Row],[Producto]],$A$2:$B$4,2,FALSE),0) -> 260 | J16: =_xlfn.IFNA(_xlfn.IFS(VentasMenudeo[[#This Row],[Producto]]=$A$2,VentasMenudeo[[#This Row],[Precio de Venta]]*VentasMenudeo[[#This Row],[Cantidad]]-VentasMenudeo[[#This Row],[Descuento]],VentasMenudeo[[#This Row],[Producto]]=$A$3,VentasMenudeo[[#This Row],[Precio de Venta]]*VentasMenudeo[[#This Row],[Cantidad]]-VentasMenudeo[[#This Row],[Descuento]],VentasMenudeo[[#This Row],[Producto]]=$A$4,VentasMenudeo[[#This Row],[Precio de Venta]]*VentasMenudeo[[#This Row],[Cantidad]]-VentasMenudeo[[#This Row],[Descuento]]),0) -> 260 | K16: 260
A17: 2022-05-06 | B17: Claudia | C17: IPLAY MAX | D17: GrapeFruit Berry | E17: 1 | H17: 0 | I17: =_xlfn.IFNA(VLOOKUP(VentasMenudeo[[#This Row],[Producto]],$A$2:$B$4,2,FALSE),0) -> 260 | J17: =_xlfn.IFNA(_xlfn.IFS(VentasMenudeo[[#This Row],[Producto]]=$A$2,VentasMenudeo[[#This Row],[Precio de Venta]]*VentasMenudeo[[#This Row],[Cantidad]]-VentasMenudeo[[#This Row],[Descuento]],VentasMenudeo[[#This Row],[Producto]]=$A$3,VentasMenudeo[[#This Row],[Precio de Venta]]*VentasMenudeo[[#This Row],[Cantidad]]-VentasMenudeo[[#This Row],[Descuento]],VentasMenudeo[[#This Row],[Producto]]=$A$4,VentasMenudeo[[#This Row],[Precio de Venta]]*VentasMenudeo[[#This Row],[Cantidad]]-VentasMenudeo[[#This Row],[Descuento]]),0) -> 260 | K17: 260
A18: 2022-05-19 | B18: Julio | C18: IPLAY MAX | D18: Energy Ice | E18: 2 | I18: =_xlfn.IFNA(VLOOKUP(VentasMenudeo[[#This Row],[Producto]],$A$2:$B$4,2,FALSE),0) -> 260 | J18: =_xlfn.IFNA(_xlfn.IFS(VentasMenudeo[[#This Row],[Producto]]=$A$2,VentasMenudeo[[#This Row],[Precio de Venta]]*VentasMenudeo[[#This Row],[Cantidad]]-VentasMenudeo[[#This Row],[Descuento]],VentasMenudeo[[#This Row],[Producto]]=$A$3,VentasMenudeo[[#This Row],[Precio de Venta]]*VentasMenudeo[[#This Row],[Cantidad]]-VentasMenudeo[[#This Row],[Descuento]],VentasMenudeo[[#This Row],[Producto]]=$A$4,VentasMenudeo[[#This Row],[Precio de Venta]]*VentasMenudeo[[#This Row],[Cantidad]]-VentasMenudeo[[#This Row],[Descuento]]),0) -> 520 | L18: 520
A19: 2022-05-19 | B19: Julio | C19: IPLAY MAX | D19: Sour Apple Melon | E19: 1 | I19: =_xlfn.IFNA(VLOOKUP(VentasMenudeo[[#This Row],[Producto]],$A$2:$B$4,2,FALSE),0) -> 260 | J19: =_xlfn.IFNA(_xlfn.IFS(VentasMenudeo[[#This Row],[Producto]]=$A$2,VentasMenudeo[[#This Row],[Precio de Venta]]*VentasMenudeo[[#This Row],[Cantidad]]-VentasMenudeo[[#This Row],[Descuento]],VentasMenudeo[[#This Row],[Producto]]=$A$3,VentasMenudeo[[#This Row],[Precio de Venta]]*VentasMenudeo[[#This Row],[Cantidad]]-VentasMenudeo[[#This Row],[Descuento]],VentasMenudeo[[#This Row],[Producto]]=$A$4,VentasMenudeo[[#This Row],[Precio de Venta]]*VentasMenudeo[[#This Row],[Cantidad]]-VentasMenudeo[[#This Row],[Descuento]]),0) -> 260 | L19: 260
A20: 2022-06-02 | B20: Julio | C20: IPLAY MAX | D20: Peach Ice | E20: 1 | I20: =_xlfn.IFNA(VLOOKUP(VentasMenudeo[[#This Row],[Producto]],$A$2:$B$4,2,FALSE),0) -> 260 | J20: =_xlfn.IFNA(_xlfn.IFS(VentasMenudeo[[#This Row],[Producto]]=$A$2,VentasMenudeo[[#This Row],[Precio de Venta]]*VentasMenudeo[[#This Row],[Cantidad]]-VentasMenudeo[[#This Row],[Descuento]],VentasMenudeo[[#This Row],[Producto]]=$A$3,VentasMenudeo[[#This Row],[Precio de Venta]]*VentasMenudeo[[#This Row],[Cantidad]]-VentasMenudeo[[#This Row],[Descuento]],VentasMenudeo[[#This Row],[Producto]]=$A$4,VentasMenudeo[[#This Row],[Precio de Venta]]*VentasMenudeo[[#This Row],[Cantidad]]-VentasMenudeo[[#This Row],[Descuento]]),0) -> 260 | K20: 260
A21: 2022-06-02 | B21: Julio | C21: IPLAY MAX | D21: Cool Mint | E21: 1 | I21: =_xlfn.IFNA(VLOOKUP(VentasMenudeo[[#This Row],[Producto]],$A$2:$B$4,2,FALSE),0) -> 260 | J21: =_xlfn.IFNA(_xlfn.IFS(VentasMenudeo[[#This Row],[Producto]]=$A$2,VentasMenudeo[[#This Row],[Precio de Venta]]*VentasMenudeo[[#This Row],[Cantidad]]-VentasMenudeo[[#This Row],[Descuento]],VentasMenudeo[[#This Row],[Producto]]=$A$3,VentasMenudeo[[#This Row],[Precio de Venta]]*VentasMenudeo[[#This Row],[Cantidad]]-VentasMenudeo[[#This Row],[Descuento]],VentasMenudeo[[#This Row],[Producto]]=$A$4,VentasMenudeo[[#This Row],[Precio de Venta]]*VentasMenudeo[[#This Row],[Cantidad]]-VentasMenudeo[[#This Row],[Descuento]]),0) -> 260 | L21: 260
A22: 2022-06-02 | B22: Julio | C22: IPLAY MAX | D22: Peach Ice | E22: 1 | I22: =_xlfn.IFNA(VLOOKUP(VentasMenudeo[[#This Row],[Producto]],$A$2:$B$4,2,FALSE),0) -> 260 | J22: =_xlfn.IFNA(_xlfn.IFS(VentasMenudeo[[#This Row],[Producto]]=$A$2,VentasMenudeo[[#This Row],[Precio de Venta]]*VentasMenudeo[[#This Row],[Cantidad]]-VentasMenudeo[[#This Row],[Descuento]],VentasMenudeo[[#This Row],[Producto]]=$A$3,VentasMenudeo[[#This Row],[Precio de Venta]]*VentasMenudeo[[#This Row],[Cantidad]]-VentasMenudeo[[#This Row],[Descuento]],VentasMenudeo[[#This Row],[Producto]]=$A$4,VentasMenudeo[[#This Row],[Precio de Venta]]*VentasMenudeo[[#This Row],[Cantidad]]-VentasMenudeo[[#This Row],[Descuento]]),0) -> 260 | K22: 260
A23: 2022-06-02 | B23: Julio | C23: IPLAY MAX | D23: Cool Mint | E23: 1 | I23: =_xlfn.IFNA(VLOOKUP(VentasMenudeo[[#This Row],[Producto]],$A$2:$B$4,2,FALSE),0) -> 260 | J23: =_xlfn.IFNA(_xlfn.IFS(VentasMenudeo[[#This Row],[Producto]]=$A$2,VentasMenudeo[[#This Row],[Precio de Venta]]*VentasMenudeo[[#This Row],[Cantidad]]-VentasMenudeo[[#This Row],[Descuento]],VentasMenudeo[[#This Row],[Producto]]=$A$3,VentasMenudeo[[#This Row],[Precio de Venta]]*VentasMenudeo[[#This Row],[Cantidad]]-VentasMenudeo[[#This Row],[Descuento]],VentasMenudeo[[#This Row],[Producto]]=$A$4,VentasMenudeo[[#This Row],[Precio de Venta]]*VentasMenudeo[[#This Row],[Cantidad]]-VentasMenudeo[[#This Row],[Descuento]]),0) -> 260 | K23: 260
A24: 2022-06-02 | B24: Julio | C24: IPLAY MAX | D24: GrapeFruit Berry | E24: 1 | I24: =_xlfn.IFNA(VLOOKUP(VentasMenudeo[[#This Row],[Producto]],$A$2:$B$4,2,FALSE),0) -> 260 | J24: =_xlfn.IFNA(_xlfn.IFS(VentasMenudeo[[#This Row],[Producto]]=$A$2,VentasMenudeo[[#This Row],[Precio de Venta]]*VentasMenudeo[[#This Row],[Cantidad]]-VentasMenudeo[[#This Row],[Descuento]],VentasMenudeo[[#This Row],[Producto]]=$A$3,VentasMenudeo[[#This Row],[Precio de Venta]]*VentasMenudeo[[#This Row],[Cantidad]]-VentasMenudeo[[#This Row],[Descuento]],VentasMenudeo[[#This Row],[Producto]]=$A$4,VentasMenudeo[[#This Row],[Precio de Venta]]*VentasMenudeo[[#This Row],[Cantidad]]-VentasMenudeo[[#This Row],[Descuento]]),0) -> 260 | K24: 260
A25: 2022-06-06 | B25: Julio | C25: IPLAY MAX | D25: Cool Mint | E25: 4 | I25: =_xlfn.IFNA(VLOOKUP(VentasMenudeo[[#This Row],[Producto]],$A$2:$B$4,2,FALSE),0) -> 260 | J25: =_xlfn.IFNA(_xlfn.IFS(VentasMenudeo[[#This Row],[Producto]]=$A$2,VentasMenudeo[[#This Row],[Precio de Venta]]*VentasMenudeo[[#This Row],[Cantidad]]-VentasMenudeo[[#This Row],[Descuento]],VentasMenudeo[[#This Row],[Producto]]=$A$3,VentasMenudeo[[#This Row],[Precio de Venta]]*VentasMenudeo[[#This Row],[Cantidad]]-VentasMenudeo[[#This Row],[Descuento]],VentasMenudeo[[#This Row],[Producto]]=$A$4,VentasMenudeo[[#This Row],[Precio de Venta]]*VentasMenudeo[[#This Row],[Cantidad]]-VentasMenudeo[[#This Row],[Descuento]]),0) -> 1040 | K25: 1040
A26: 2022-06-06 | B26: Julio | C26: IPLAY MAX | D26: Grapestraw | E26: 3 | I26: =_xlfn.IFNA(VLOOKUP(VentasMenudeo[[#This Row],[Producto]],$A$2:$B$4,2,FALSE),0) -> 260 | J26: =_xlfn.IFNA(_xlfn.IFS(VentasMenudeo[[#This Row],[Producto]]=$A$2,VentasMenudeo[[#This Row],[Precio de Venta]]*VentasMenudeo[[#This Row],[Cantidad]]-VentasMenudeo[[#This Row],[Descuento]],VentasMenudeo[[#This Row],[Producto]]=$A$3,VentasMenudeo[[#This Row],[Precio de Venta]]*VentasMenudeo[[#This Row],[Cantidad]]-VentasMenudeo[[#This Row],[Descuento]],VentasMenudeo[[#This Row],[Producto]]=$A$4,VentasMenudeo[[#This Row],[Precio de Venta]]*VentasMenudeo[[#This Row],[Cantidad]]-VentasMenudeo[[#This Row],[Descuento]]),0) -> 780 | K26: 780
A27: 2022-06-16 | B27: Julio | C27: IPLAY MAX | D27: Cool Mint | E27: 1 | I27: =_xlfn.IFNA(VLOOKUP(VentasMenudeo[[#This Row],[Producto]],$A$2:$B$4,2,FALSE),0) -> 260 | J27: =_xlfn.IFNA(_xlfn.IFS(VentasMenudeo[[#This Row],[Producto]]=$A$2,VentasMenudeo[[#This Row],[Precio de Venta]]*VentasMenudeo[[#This Row],[Cantidad]]-VentasMenudeo[[#This Row],[Descuento]],VentasMenudeo[[#This Row],[Producto]]=$A$3,VentasMenudeo[[#This Row],[Precio de Venta]]*VentasMenudeo[[#This Row],[Cantidad]]-VentasMenudeo[[#This Row],[Descuento]],VentasMenudeo[[#This Row],[Producto]]=$A$4,VentasMenudeo[[#This Row],[Precio de Venta]]*VentasMenudeo[[#This Row],[Cantidad]]-VentasMenudeo[[#This Row],[Descuento]]),0) -> 260 | K27: 260
A28: 2022-06-16 | B28: Julio | C28: IPLAY MAX | D28: StrawBerry Lychee | E28: 2 | I28: =_xlfn.IFNA(VLOOKUP(VentasMenudeo[[#This Row],[Producto]],$A$2:$B$4,2,FALSE),0) -> 260 | J28: =_xlfn.IFNA(_xlfn.IFS(VentasMenudeo[[#This Row],[Producto]]=$A$2,VentasMenudeo[[#This Row],[Precio de Venta]]*VentasMenudeo[[#This Row],[Cantidad]]-VentasMenudeo[[#This Row],[Descuento]],VentasMenudeo[[#This Row],[Producto]]=$A$3,VentasMenudeo[[#This Row],[Precio de Venta]]*VentasMenudeo[[#This Row],[Cantidad]]-VentasMenudeo[[#This Row],[Descuento]],VentasMenudeo[[#This Row],[Producto]]=$A$4,VentasMenudeo[[#This Row],[Precio de Venta]]*VentasMenudeo[[#This Row],[Cantidad]]-VentasMenudeo[[#This Row],[Descuento]]),0) -> 520 | K28: 520
A29: 2022-06-16 | B29: Julio | C29: IPLAY MAX | D29: Sour Apple Melon | E29: 1 | F29: Personal | H29: =_xlfn.IFNA(VLOOKUP(VentasMenudeo[[#This Row],[Promoción]],PromocionesMenudeo[[Promocion]:[Descuento]],2,FALSE),0) -> 137 | I29: =_xlfn.IFNA(VLOOKUP(VentasMenudeo[[#This Row],[Producto]],$A$2:$B$4,2,FALSE),0) -> 260 | J29: =_xlfn.IFNA(_xlfn.IFS(VentasMenudeo[[#This Row],[Producto]]=$A$2,VentasMenudeo[[#This Row],[Precio de Venta]]*VentasMenudeo[[#This Row],[Cantidad]]-VentasMenudeo[[#This Row],[Descuento]],VentasMenudeo[[#This Row],[Producto]]=$A$3,VentasMenudeo[[#This Row],[Precio de Venta]]*VentasMenudeo[[#This Row],[Cantidad]]-VentasMenudeo[[#This Row],[Descuento]],VentasMenudeo[[#This Row],[Producto]]=$A$4,VentasMenudeo[[#This Row],[Precio de Venta]]*VentasMenudeo[[#This Row],[Cantidad]]-VentasMenudeo[[#This Row],[Descuento]]),0) -> 123 | K29: 123
A30: 2022-06-16 | B30: Julio | C30: IPLAY MAX | D30: GrapeFruit Berry | E30: 3 | H30: =_xlfn.IFNA(VLOOKUP(VentasMenudeo[[#This Row],[Promoción]],PromocionesMenudeo[[Promocion]:[Descuento]],2,FALSE),0) -> 0 | I30: =_xlfn.IFNA(VLOOKUP(VentasMenudeo[[#This Row],[Producto]],$A$2:$B$4,2,FALSE),0) -> 260 | J30: =_xlfn.IFNA(_xlfn.IFS(VentasMenudeo[[#This Row],[Producto]]=$A$2,VentasMenudeo[[#This Row],[Precio de Venta]]*VentasMenudeo[[#This Row],[Cantidad]]-VentasMenudeo[[#This Row],[Descuento]],VentasMenudeo[[#This Row],[Producto]]=$A$3,VentasMenudeo[[#This Row],[Precio de Venta]]*VentasMenudeo[[#This Row],[Cantidad]]-VentasMenudeo[[#This Row],[Descuento]],VentasMenudeo[[#This Row],[Producto]]=$A$4,VentasMenudeo[[#This Row],[Precio de Venta]]*VentasMenudeo[[#This Row],[Cantidad]]-VentasMenudeo[[#This Row],[Descuento]]),0) -> 780 | K30: 780
A31: 2022-06-16 | B31: Julio | C31: IPLAY MAX | D31: GrapeFruit Berry | E31: 2 | F31: Personal | H31: =_xlfn.IFNA(VLOOKUP(VentasMenudeo[[#This Row],[Promoción]],PromocionesMenudeo[[Promocion]:[Descuento]],2,FALSE),0) -> 137 | I31: =_xlfn.IFNA(VLOOKUP(VentasMenudeo[[#This Row],[Producto]],$A$2:$B$4,2,FALSE),0) -> 260 | J31: =_xlfn.IFNA(_xlfn.IFS(VentasMenudeo[[#This Row],[Producto]]=$A$2,VentasMenudeo[[#This Row],[Precio de Venta]]*VentasMenudeo[[#This Row],[Cantidad]]-VentasMenudeo[[#This Row],[Descuento]],VentasMenudeo[[#This Row],[Producto]]=$A$3,VentasMenudeo[[#This Row],[Precio de Venta]]*VentasMenudeo[[#This Row],[Cantidad]]-VentasMenudeo[[#This Row],[Descuento]],VentasMenudeo[[#This Row],[Producto]]=$A$4,VentasMenudeo[[#This Row],[Precio de Venta]]*VentasMenudeo[[#This Row],[Cantidad]]-VentasMenudeo[[#This Row],[Descuento]]),0) -> 383 | K31: 383
A32: 2022-06-16 | B32: Julio | C32: IPLAY MAX | D32: Bluerazz | E32: 2 | H32: =_xlfn.IFNA(VLOOKUP(VentasMenudeo[[#This Row],[Promoción]],PromocionesMenudeo[[Promocion]:[Descuento]],2,FALSE),0) -> 0 | I32: =_xlfn.IFNA(VLOOKUP(VentasMenudeo[[#This Row],[Producto]],$A$2:$B$4,2,FALSE),0) -> 260 | J32: =_xlfn.IFNA(_xlfn.IFS(VentasMenudeo[[#This Row],[Producto]]=$A$2,VentasMenudeo[[#This Row],[Precio de Venta]]*VentasMenudeo[[#This Row],[Cantidad]]-VentasMenudeo[[#This Row],[Descuento]],VentasMenudeo[[#This Row],[Producto]]=$A$3,VentasMenudeo[[#This Row],[Precio de Venta]]*VentasMenudeo[[#This Row],[Cantidad]]-VentasMenudeo[[#This Row],[Descuento]],VentasMenudeo[[#This Row],[Producto]]=$A$4,VentasMenudeo[[#This Row],[Precio de Venta]]*VentasMenudeo[[#This Row],[Cantidad]]-VentasMenudeo[[#This Row],[Descuento]]),0) -> 520 | K32: 520
A33: 2022-06-16 | B33: Julio | C33: IPLAY MAX | D33: Peach Ice | E33: 1 | F33: Personal | H33: =_xlfn.IFNA(VLOOKUP(VentasMenudeo[[#This Row],[Promoción]],PromocionesMenudeo[[Promocion]:[Descuento]],2,FALSE),0) -> 137 | I33: =_xlfn.IFNA(VLOOKUP(VentasMenudeo[[#This Row],[Producto]],$A$2:$B$4,2,FALSE),0) -> 260 | J33: =_xlfn.IFNA(_xlfn.IFS(VentasMenudeo[[#This Row],[Producto]]=$A$2,VentasMenudeo[[#This Row],[Precio de Venta]]*VentasMenudeo[[#This Row],[Cantidad]]-VentasMenudeo[[#This Row],[Descuento]],VentasMenudeo[[#This Row],[Producto]]=$A$3,VentasMenudeo[[#This Row],[Precio de Venta]]*VentasMenudeo[[#This Row],[Cantidad]]-VentasMenudeo[[#This Row],[Descuento]],VentasMenudeo[[#This Row],[Producto]]=$A$4,VentasMenudeo[[#This Row],[Precio de Venta]]*VentasMenudeo[[#This Row],[Cantidad]]-VentasMenudeo[[#This Row],[Descuento]]),0) -> 123 | K33: 123
A34: 2022-06-16 | B34: Julio | C34: IPLAY MAX | D34: Peach Ice | E34: 1 | F34: No aplica | H34: =_xlfn.IFNA(VLOOKUP(VentasMenudeo[[#This Row],[Promoción]],PromocionesMenudeo[[Promocion]:[Descuento]],2,FALSE),0) -> 0 | I34: =_xlfn.IFNA(VLOOKUP(VentasMenudeo[[#This Row],[Producto]],$A$2:$B$4,2,FALSE),0) -> 260 | J34: =_xlfn.IFNA(_xlfn.IFS(VentasMenudeo[[#This Row],[Producto]]=$A$2,VentasMenudeo[[#This Row],[Precio de Venta]]*VentasMenudeo[[#This Row],[Cantidad]]-VentasMenudeo[[#This Row],[Descuento]],VentasMenudeo[[#This Row],[Producto]]=$A$3,VentasMenudeo[[#This Row],[Precio de Venta]]*VentasMenudeo[[#This Row],[Cantidad]]-VentasMenudeo[[#This Row],[Descuento]],VentasMenudeo[[#This Row],[Producto]]=$A$4,VentasMenudeo[[#This Row],[Precio de Venta]]*VentasMenudeo[[#This Row],[Cantidad]]-VentasMenudeo[[#This Row],[Descuento]]),0) -> 260 | K34: 260
A35: 2022-06-17 | B35: Julio | C35: IPLAY MAX | D35: GrapeFruit Berry | E35: 1 | H35: =_xlfn.IFNA(VLOOKUP(VentasMenudeo[[#This Row],[Promoción]],PromocionesMenudeo[[Promocion]:[Descuento]],2,FALSE),0) -> 0 | I35: =_xlfn.IFNA(VLOOKUP(VentasMenudeo[[#This Row],[Producto]],$A$2:$B$4,2,FALSE),0) -> 260 | J35: =_xlfn.IFNA(_xlfn.IFS(VentasMenudeo[[#This Row],[Producto]]=$A$2,VentasMenudeo[[#This Row],[Precio de Venta]]*VentasMenudeo[[#This Row],[Cantidad]]-VentasMenudeo[[#This Row],[Descuento]],VentasMenudeo[[#This Row],[Producto]]=$A$3,VentasMenudeo[[#This Row],[Precio de Venta]]*VentasMenudeo[[#This Row],[Cantidad]]-VentasMenudeo[[#This Row],[Descuento]],VentasMenudeo[[#This Row],[Producto]]=$A$4,VentasMenudeo[[#This Row],[Precio de Venta]]*VentasMenudeo[[#This Row],[Cantidad]]-VentasMenudeo[[#This Row],[Descuento]]),0) -> 260 | K35: 260
A36: 2022-06-17 | B36: Julio | C36: IPLAY MAX | D36: Bluerazz | E36: 2 | H36: =_xlfn.IFNA(VLOOKUP(VentasMenudeo[[#This Row],[Promoción]],PromocionesMenudeo[[Promocion]:[Descuento]],2,FALSE),0) -> 0 | I36: =_xlfn.IFNA(VLOOKUP(VentasMenudeo[[#This Row],[Producto]],$A$2:$B$4,2,FALSE),0) -> 260 | J36: =_xlfn.IFNA(_xlfn.IFS(VentasMenudeo[[#This Row],[Producto]]=$A$2,VentasMenudeo[[#This Row],[Precio de Venta]]*VentasMenudeo[[#This Row],[Cantidad]]-VentasMenudeo[[#This Row],[Descuento]],VentasMenudeo[[#This Row],[Producto]]=$A$3,VentasMenudeo[[#This Row],[Precio de Venta]]*VentasMenudeo[[#This Row],[Cantidad]]-VentasMenudeo[[#This Row],[Descuento]],VentasMenudeo[[#This Row],[Producto]]=$A$4,VentasMenudeo[[#This Row],[Precio de Venta]]*VentasMenudeo[[#This Row],[Cantidad]]-VentasMenudeo[[#This Row],[Descuento]]),0) -> 520 | L36: 520
A37: 2022-06-17 | B37: Julio | C37: IPLAY MAX | D37: GrapeFruit Berry | E37: 1 | H37: =_xlfn.IFNA(VLOOKUP(VentasMenudeo[[#This Row],[Promoción]],PromocionesMenudeo[[Promocion]:[Descuento]],2,FALSE),0) -> 0 | I37: =_xlfn.IFNA(VLOOKUP(VentasMenudeo[[#This Row],[Producto]],$A$2:$B$4,2,FALSE),0) -> 260 | J37: =_xlfn.IFNA(_xlfn.IFS(VentasMenudeo[[#This Row],[Producto]]=$A$2,VentasMenudeo[[#This Row],[Precio de Venta]]*VentasMenudeo[[#This Row],[Cantidad]]-VentasMenudeo[[#This Row],[Descuento]],VentasMenudeo[[#This Row],[Producto]]=$A$3,VentasMenudeo[[#This Row],[Precio de Venta]]*VentasMenudeo[[#This Row],[Cantidad]]-VentasMenudeo[[#This Row],[Descuento]],VentasMenudeo[[#This Row],[Producto]]=$A$4,VentasMenudeo[[#This Row],[Precio de Venta]]*VentasMenudeo[[#This Row],[Cantidad]]-VentasMenudeo[[#This Row],[Descuento]]),0) -> 260 | L37: 260
A38: 2022-06-23 | B38: Julio | C38: IPLAY MAX | D38: StrawBerry Lychee | E38: 2 | F38: $20 peso | H38: =_xlfn.IFNA(VLOOKUP(VentasMenudeo[[#This Row],[Promoción]],PromocionesMenudeo[[Promocion]:[Descuento]],2,FALSE),0) -> 20 | I38: =_xlfn.IFNA(VLOOKUP(VentasMenudeo[[#This Row],[Producto]],$A$2:$B$4,2,FALSE),0) -> 260 | J38: =_xlfn.IFNA(_xlfn.IFS(VentasMenudeo[[#This Row],[Producto]]=$A$2,VentasMenudeo[[#This Row],[Precio de Venta]]*VentasMenudeo[[#This Row],[Cantidad]]-VentasMenudeo[[#This Row],[Descuento]],VentasMenudeo[[#This Row],[Producto]]=$A$3,VentasMenudeo[[#This Row],[Precio de Venta]]*VentasMenudeo[[#This Row],[Cantidad]]-VentasMenudeo[[#This Row],[Descuento]],VentasMenudeo[[#This Row],[Producto]]=$A$4,VentasMenudeo[[#This Row],[Precio de Venta]]*VentasMenudeo[[#This Row],[Cantidad]]-VentasMenudeo[[#This Row],[Descuento]]),0) -> 500 | K38: =VentasMenudeo[[#This Row],[Venta Total]] -> 500
A39: 2022-06-23 | B39: Julio | C39: IPLAY MAX | D39: GrapeFruit Berry | E39: 1 | F39: $20 peso | H39: =_xlfn.IFNA(VLOOKUP(VentasMenudeo[[#This Row],[Promoción]],PromocionesMenudeo[[Promocion]:[Descuento]],2,FALSE),0) -> 20 | I39: =_xlfn.IFNA(VLOOKUP(VentasMenudeo[[#This Row],[Producto]],$A$2:$B$4,2,FALSE),0) -> 260 | J39: =_xlfn.IFNA(_xlfn.IFS(VentasMenudeo[[#This Row],[Producto]]=$A$2,VentasMenudeo[[#This Row],[Precio de Venta]]*VentasMenudeo[[#This Row],[Cantidad]]-VentasMenudeo[[#This Row],[Descuento]],VentasMenudeo[[#This Row],[Producto]]=$A$3,VentasMenudeo[[#This Row],[Precio de Venta]]*VentasMenudeo[[#This Row],[Cantidad]]-VentasMenudeo[[#This Row],[Descuento]],VentasMenudeo[[#This Row],[Producto]]=$A$4,VentasMenudeo[[#This Row],[Precio de Venta]]*VentasMenudeo[[#This Row],[Cantidad]]-VentasMenudeo[[#This Row],[Descuento]]),0) -> 240 | K39: =VentasMenudeo[[#This Row],[Venta Total]] -> 240
A40: 2022-06-23 | B40: Julio | C40: IPLAY MAX | D40: Sour Apple Melon | E40: 2 | F40: $20 Descuento | H40: =_xlfn.IFNA(VLOOKUP(VentasMenudeo[[#This Row],[Promoción]],PromocionesMenudeo[[Promocion]:[Descuento]],2,FALSE),0) -> 20 | I40: =_xlfn.IFNA(VLOOKUP(VentasMenudeo[[#This Row],[Producto]],$A$2:$B$4,2,FALSE),0) -> 260 | J40: =_xlfn.IFNA(_xlfn.IFS(VentasMenudeo[[#This Row],[Producto]]=$A$2,VentasMenudeo[[#This Row],[Precio de Venta]]*VentasMenudeo[[#This Row],[Cantidad]]-VentasMenudeo[[#This Row],[Descuento]],VentasMenudeo[[#This Row],[Producto]]=$A$3,VentasMenudeo[[#This Row],[Precio de Venta]]*VentasMenudeo[[#This Row],[Cantidad]]-VentasMenudeo[[#This Row],[Descuento]],VentasMenudeo[[#This Row],[Producto]]=$A$4,VentasMenudeo[[#This Row],[Precio de Venta]]*VentasMenudeo[[#This Row],[Cantidad]]-VentasMenudeo[[#This Row],[Descuento]]),0) -> 500 | K40: =VentasMenudeo[[#This Row],[Venta Total]] -> 500
A41: 2022-06-23 | B41: Julio | C41: IPLAY MAX | D41: Guava | E41: 2 | F41: $20 Descuento | H41: =_xlfn.IFNA(VLOOKUP(VentasMenudeo[[#This Row],[Promoción]],PromocionesMenudeo[[Promocion]:[Descuento]],2,FALSE),0) -> 20 | I41: =_xlfn.IFNA(VLOOKUP(VentasMenudeo[[#This Row],[Producto]],$A$2:$B$4,2,FALSE),0) -> 260 | J41: =_xlfn.IFNA(_xlfn.IFS(VentasMenudeo[[#This Row],[Producto]]=$A$2,VentasMenudeo[[#This Row],[Precio de Venta]]*VentasMenudeo[[#This Row],[Cantidad]]-VentasMenudeo[[#This Row],[Descuento]],VentasMenudeo[[#This Row],[Producto]]=$A$3,VentasMenudeo[[#This Row],[Precio de Venta]]*VentasMenudeo[[#This Row],[Cantidad]]-VentasMenudeo[[#This Row],[Descuento]],VentasMenudeo[[#This Row],[Producto]]=$A$4,VentasMenudeo[[#This Row],[Precio de Venta]]*VentasMenudeo[[#This Row],[Cantidad]]-VentasMenudeo[[#This Row],[Descuento]]),0) -> 500 | K41: =VentasMenudeo[[#This Row],[Venta Total]] -> 500
A42: 2022-06-23 | B42: Julio | C42: IPLAY MAX | D42: Guava | E42: 1 | F42: Personal | H42: =_xlfn.IFNA(VLOOKUP(VentasMenudeo[[#This Row],[Promoción]],PromocionesMenudeo[[Promocion]:[Descuento]],2,FALSE),0) -> 137 | I42: =_xlfn.IFNA(VLOOKUP(VentasMenudeo[[#This Row],[Producto]],$A$2:$B$4,2,FALSE),0) -> 260 | J42: =_xlfn.IFNA(_xlfn.IFS(VentasMenudeo[[#This Row],[Producto]]=$A$2,VentasMenudeo[[#This Row],[Precio de Venta]]*VentasMenudeo[[#This Row],[Cantidad]]-VentasMenudeo[[#This Row],[Descuento]],VentasMenudeo[[#This Row],[Producto]]=$A$3,VentasMenudeo[[#This Row],[Precio de Venta]]*VentasMenudeo[[#This Row],[Cantidad]]-VentasMenudeo[[#This Row],[Descuento]],VentasMenudeo[[#This Row],[Producto]]=$A$4,VentasMenudeo[[#This Row],[Precio de Venta]]*VentasMenudeo[[#This Row],[Cantidad]]-VentasMenudeo[[#This Row],[Descuento]]),0) -> 123 | K42: =VentasMenudeo[[#This Row],[Venta Total]] -> 123
A43: 2022-06-23 | B43: Julio | C43: IPLAY MAX | D43: Bluerazz | E43: 2 | H43: =_xlfn.IFNA(VLOOKUP(VentasMenudeo[[#This Row],[Promoción]],PromocionesMenudeo[[Promocion]:[Descuento]],2,FALSE),0) -> 0 | I43: =_xlfn.IFNA(VLOOKUP(VentasMenudeo[[#This Row],[Producto]],$A$2:$B$4,2,FALSE),0) -> 260 | J43: =_xlfn.IFNA(_xlfn.IFS(VentasMenudeo[[#This Row],[Producto]]=$A$2,VentasMenudeo[[#This Row],[Precio de Venta]]*VentasMenudeo[[#This Row],[Cantidad]]-VentasMenudeo[[#This Row],[Descuento]],VentasMenudeo[[#This Row],[Producto]]=$A$3,VentasMenudeo[[#This Row],[Precio de Venta]]*VentasMenudeo[[#This Row],[Cantidad]]-VentasMenudeo[[#This Row],[Descuento]],VentasMenudeo[[#This Row],[Producto]]=$A$4,VentasMenudeo[[#This Row],[Precio de Venta]]*VentasMenudeo[[#This Row],[Cantidad]]-VentasMenudeo[[#This Row],[Descuento]]),0) -> 520 | L43: 520
A44: 2022-06-23 | B44: Julio | C44: IPLAY MAX | D44: Bluerazz | E44: 1 | F44: $20 Descuento | H44: =_xlfn.IFNA(VLOOKUP(VentasMenudeo[[#This Row],[Promoción]],PromocionesMenudeo[[Promocion]:[Descuento]],2,FALSE),0) -> 20 | I44: =_xlfn.IFNA(VLOOKUP(VentasMenudeo[[#This Row],[Producto]],$A$2:$B$4,2,FALSE),0) -> 260 | J44: =_xlfn.IFNA(_xlfn.IFS(VentasMenudeo[[#This Row],[Producto]]=$A$2,VentasMenudeo[[#This Row],[Precio de Venta]]*VentasMenudeo[[#This Row],[Cantidad]]-VentasMenudeo[[#This Row],[Descuento]],VentasMenudeo[[#This Row],[Producto]]=$A$3,VentasMenudeo[[#This Row],[Precio de Venta]]*VentasMenudeo[[#This Row],[Cantidad]]-VentasMenudeo[[#This Row],[Descuento]],VentasMenudeo[[#This Row],[Producto]]=$A$4,VentasMenudeo[[#This Row],[Precio de Venta]]*VentasMenudeo[[#This Row],[Cantidad]]-VentasMenudeo[[#This Row],[Descuento]]),0) -> 240 | K44: =VentasMenudeo[[#This Row],[Venta Total]] -> 240
A45: 2022-06-23 | B45: Julio | C45: IPLAY MAX | D45: Peach Ice | E45: 2 | F45: $20 Descuento | H45: =_xlfn.IFNA(VLOOKUP(VentasMenudeo[[#This Row],[Promoción]],PromocionesMenudeo[[Promocion]:[Descuento]],2,FALSE),0) -> 20 | I45: =_xlfn.IFNA(VLOOKUP(VentasMenudeo[[#This Row],[Producto]],$A$2:$B$4,2,FALSE),0) -> 260 | J45: =_xlfn.IFNA(_xlfn.IFS(VentasMenudeo[[#This Row],[Producto]]=$A$2,VentasMenudeo[[#This Row],[Precio de Venta]]*VentasMenudeo[[#This Row],[Cantidad]]-VentasMenudeo[[#This Row],[Descuento]],VentasMenudeo[[#This Row],[Producto]]=$A$3,VentasMenudeo[[#This Row],[Precio de Venta]]*VentasMenudeo[[#This Row],[Cantidad]]-VentasMenudeo[[#This Row],[Descuento]],VentasMenudeo[[#This Row],[Producto]]=$A$4,VentasMenudeo[[#This Row],[Precio de Venta]]*VentasMenudeo[[#This Row],[Cantidad]]-VentasMenudeo[[#This Row],[Descuento]]),0) -> 500 | K45: =VentasMenudeo[[#This Row],[Venta Total]] -> 500
A46: 2022-06-23 | B46: Julio | C46: IPLAY MAX | D46: Peach Ice | E46: 1 | H46: =_xlfn.IFNA(VLOOKUP(VentasMenudeo[[#This Row],[Promoción]],PromocionesMenudeo[[Promocion]:[Descuento]],2,FALSE),0) -> 0 | I46: =_xlfn.IFNA(VLOOKUP(VentasMenudeo[[#This Row],[Producto]],$A$2:$B$4,2,FALSE),0) -> 260 | J46: =_xlfn.IFNA(_xlfn.IFS(VentasMenudeo[[#This Row],[Producto]]=$A$2,VentasMenudeo[[#This Row],[Precio de Venta]]*VentasMenudeo[[#This Row],[Cantidad]]-VentasMenudeo[[#This Row],[Descuento]],VentasMenudeo[[#This Row],[Producto]]=$A$3,VentasMenudeo[[#This Row],[Precio de Venta]]*VentasMenudeo[[#This Row],[Cantidad]]-VentasMenudeo[[#This Row],[Descuento]],VentasMenudeo[[#This Row],[Producto]]=$A$4,VentasMenudeo[[#This Row],[Precio de Venta]]*VentasMenudeo[[#This Row],[Cantidad]]-VentasMenudeo[[#This Row],[Descuento]]),0) -> 260 | K46: =VentasMenudeo[[#This Row],[Venta Total]] -> 260
A47: 2022-06-23 | B47: Julio | C47: IPLAY MAX | D47: Grapestraw | E47: 3 | H47: =_xlfn.IFNA(VLOOKUP(VentasMenudeo[[#This Row],[Promoción]],PromocionesMenudeo[[Promocion]:[Descuento]],2,FALSE),0) -> 0 | I47: =_xlfn.IFNA(VLOOKUP(VentasMenudeo[[#This Row],[Producto]],$A$2:$B$4,2,FALSE),0) -> 260 | J47: =_xlfn.IFNA(_xlfn.IFS(VentasMenudeo[[#This Row],[Producto]]=$A$2,VentasMenudeo[[#This Row],[Precio de Venta]]*VentasMenudeo[[#This Row],[Cantidad]]-VentasMenudeo[[#This Row],[Descuento]],VentasMenudeo[[#This Row],[Producto]]=$A$3,VentasMenudeo[[#This Row],[Precio de Venta]]*VentasMenudeo[[#This Row],[Cantidad]]-VentasMenudeo[[#This Row],[Descuento]],VentasMenudeo[[#This Row],[Producto]]=$A$4,VentasMenudeo[[#This Row],[Precio de Venta]]*VentasMenudeo[[#This Row],[Cantidad]]-VentasMenudeo[[#This Row],[Descuento]]),0) -> 780 | K47: =VentasMenudeo[[#This Row],[Venta Total]] -> 780
A48: 2022-06-23 | B48: Julio | C48: IPLAY MAX | D48: Grapestraw | E48: 1 | F48: Personal | H48: =_xlfn.IFNA(VLOOKUP(VentasMenudeo[[#This Row],[Promoción]],PromocionesMenudeo[[Promocion]:[Descuento]],2,FALSE),0) -> 137 | I48: =_xlfn.IFNA(VLOOKUP(VentasMenudeo[[#This Row],[Producto]],$A$2:$B$4,2,FALSE),0) -> 260 | J48: =_xlfn.IFNA(_xlfn.IFS(VentasMenudeo[[#This Row],[Producto]]=$A$2,VentasMenudeo[[#This Row],[Precio de Venta]]*VentasMenudeo[[#This Row],[Cantidad]]-VentasMenudeo[[#This Row],[Descuento]],VentasMenudeo[[#This Row],[Producto]]=$A$3,VentasMenudeo[[#This Row],[Precio de Venta]]*VentasMenudeo[[#This Row],[Cantidad]]-VentasMenudeo[[#This Row],[Descuento]],VentasMenudeo[[#This Row],[Producto]]=$A$4,VentasMenudeo[[#This Row],[Precio de Venta]]*VentasMenudeo[[#This Row],[Cantidad]]-VentasMenudeo[[#This Row],[Descuento]]),0) -> 123 | K48: =VentasMenudeo[[#This Row],[Venta Total]] -> 123
A49: 2022-06-24 | B49: Julio | C49: IPLAY MAX | D49: Cool Mint | E49: 2 | I49: =_xlfn.IFNA(VLOOKUP(VentasMenudeo[[#This Row],[Producto]],$A$2:$B$4,2,FALSE),0) -> 260 | J49: =_xlfn.IFNA(_xlfn.IFS(VentasMenudeo[[#This Row],[Producto]]=$A$2,VentasMenudeo[[#This Row],[Precio de Venta]]*VentasMenudeo[[#This Row],[Cantidad]]-VentasMenudeo[[#This Row],[Descuento]],VentasMenudeo[[#This Row],[Producto]]=$A$3,VentasMenudeo[[#This Row],[Precio de Venta]]*VentasMenudeo[[#This Row],[Cantidad]]-VentasMenudeo[[#This Row],[Descuento]],VentasMenudeo[[#This Row],[Producto]]=$A$4,VentasMenudeo[[#This Row],[Precio de Venta]]*VentasMenudeo[[#This Row],[Cantidad]]-VentasMenudeo[[#This Row],[Descuento]]),0) -> 520 | K49: 520
A50: 2022-06-24 | B50: Julio | C50: IPLAY MAX | D50: Cool Mint | E50: 1 | I50: =_xlfn.IFNA(VLOOKUP(VentasMenudeo[[#This Row],[Producto]],$A$2:$B$4,2,FALSE),0) -> 260 | J50: =_xlfn.IFNA(_xlfn.IFS(VentasMenudeo[[#This Row],[Producto]]=$A$2,VentasMenudeo[[#This Row],[Precio de Venta]]*VentasMenudeo[[#This Row],[Cantidad]]-VentasMenudeo[[#This Row],[Descuento]],VentasMenudeo[[#This Row],[Producto]]=$A$3,VentasMenudeo[[#This Row],[Precio de Venta]]*VentasMenudeo[[#This Row],[Cantidad]]-VentasMenudeo[[#This Row],[Descuento]],VentasMenudeo[[#This Row],[Producto]]=$A$4,VentasMenudeo[[#This Row],[Precio de Venta]]*VentasMenudeo[[#This Row],[Cantidad]]-VentasMenudeo[[#This Row],[Descuento]]),0) -> 260 | K50: 260
A51: 2022-06-24 | B51: Julio | C51: IPLAY MAX | D51: Energy Ice | E51: 1 | I51: =_xlfn.IFNA(VLOOKUP(VentasMenudeo[[#This Row],[Producto]],$A$2:$B$4,2,FALSE),0) -> 260 | J51: =_xlfn.IFNA(_xlfn.IFS(VentasMenudeo[[#This Row],[Producto]]=$A$2,VentasMenudeo[[#This Row],[Precio de Venta]]*VentasMenudeo[[#This Row],[Cantidad]]-VentasMenudeo[[#This Row],[Descuento]],VentasMenudeo[[#This Row],[Producto]]=$A$3,VentasMenudeo[[#This Row],[Precio de Venta]]*VentasMenudeo[[#This Row],[Cantidad]]-VentasMenudeo[[#This Row],[Descuento]],VentasMenudeo[[#This Row],[Producto]]=$A$4,VentasMenudeo[[#This Row],[Precio de Venta]]*VentasMenudeo[[#This Row],[Cantidad]]-VentasMenudeo[[#This Row],[Descuento]]),0) -> 260 | K51: 260
A52: 2022-06-24 | B52: Julio | C52: IPLAY MAX | D52: Bluerazz | E52: 2 | I52: =_xlfn.IFNA(VLOOKUP(VentasMenudeo[[#This Row],[Producto]],$A$2:$B$4,2,FALSE),0) -> 260 | J52: =_xlfn.IFNA(_xlfn.IFS(VentasMenudeo[[#This Row],[Producto]]=$A$2,VentasMenudeo[[#This Row],[Precio de Venta]]*VentasMenudeo[[#This Row],[Cantidad]]-VentasMenudeo[[#This Row],[Descuento]],VentasMenudeo[[#This Row],[Producto]]=$A$3,VentasMenudeo[[#This Row],[Precio de Venta]]*VentasMenudeo[[#This Row],[Cantidad]]-VentasMenudeo[[#This Row],[Descuento]],VentasMenudeo[[#This Row],[Producto]]=$A$4,VentasMenudeo[[#This Row],[Precio de Venta]]*VentasMenudeo[[#This Row],[Cantidad]]-VentasMenudeo[[#This Row],[Descuento]]),0) -> 520 | K52: 520
A53: 2022-06-24 | B53: Julio | C53: IPLAY MAX | D53: Grapestraw | E53: 2 | I53: =_xlfn.IFNA(VLOOKUP(VentasMenudeo[[#This Row],[Producto]],$A$2:$B$4,2,FALSE),0) -> 260 | J53: =_xlfn.IFNA(_xlfn.IFS(VentasMenudeo[[#This Row],[Producto]]=$A$2,VentasMenudeo[[#This Row],[Precio de Venta]]*VentasMenudeo[[#This Row],[Cantidad]]-VentasMenudeo[[#This Row],[Descuento]],VentasMenudeo[[#This Row],[Producto]]=$A$3,VentasMenudeo[[#This Row],[Precio de Venta]]*VentasMenudeo[[#This Row],[Cantidad]]-VentasMenudeo[[#This Row],[Descuento]],VentasMenudeo[[#This Row],[Producto]]=$A$4,VentasMenudeo[[#This Row],[Precio de Venta]]*VentasMenudeo[[#This Row],[Cantidad]]-VentasMenudeo[[#This Row],[Descuento]]),0) -> 520 | K53: 520
A54: 2022-06-24 | B54: Julio | C54: IPLAY MAX | D54: Peach Ice | E54: 1 | I54: =_xlfn.IFNA(VLOOKUP(VentasMenudeo[[#This Row],[Producto]],$A$2:$B$4,2,FALSE),0) -> 260 | J54: =_xlfn.IFNA(_xlfn.IFS(VentasMenudeo[[#This Row],[Producto]]=$A$2,VentasMenudeo[[#This Row],[Precio de Venta]]*VentasMenudeo[[#This Row],[Cantidad]]-VentasMenudeo[[#This Row],[Descuento]],VentasMenudeo[[#This Row],[Producto]]=$A$3,VentasMenudeo[[#This Row],[Precio de Venta]]*VentasMenudeo[[#This Row],[Cantidad]]-VentasMenudeo[[#This Row],[Descuento]],VentasMenudeo[[#This Row],[Producto]]=$A$4,VentasMenudeo[[#This Row],[Precio de Venta]]*VentasMenudeo[[#This Row],[Cantidad]]-VentasMenudeo[[#This Row],[Descuento]]),0) -> 260 | K54: 260
A55: 2022-06-24 | B55: Julio | C55: IPLAY MAX | D55: Berry Watermelon | E55: 1 | I55: =_xlfn.IFNA(VLOOKUP(VentasMenudeo[[#This Row],[Producto]],$A$2:$B$4,2,FALSE),0) -> 260 | J55: =_xlfn.IFNA(_xlfn.IFS(VentasMenudeo[[#This Row],[Producto]]=$A$2,VentasMenudeo[[#This Row],[Precio de Venta]]*VentasMenudeo[[#This Row],[Cantidad]]-VentasMenudeo[[#This Row],[Descuento]],VentasMenudeo[[#This Row],[Producto]]=$A$3,VentasMenudeo[[#This Row],[Precio de Venta]]*VentasMenudeo[[#This Row],[Cantidad]]-VentasMenudeo[[#This Row],[Descuento]],VentasMenudeo[[#This Row],[Producto]]=$A$4,VentasMenudeo[[#This Row],[Precio de Venta]]*VentasMenudeo[[#This Row],[Cantidad]]-VentasMenudeo[[#This Row],[Descuento]]),0) -> 260 | K55: 260
A56: 2022-06-24 | B56: Julio | C56: IPLAY MAX | D56: Lemon Cucumber | E56: 1 | I56: =_xlfn.IFNA(VLOOKUP(VentasMenudeo[[#This Row],[Producto]],$A$2:$B$4,2,FALSE),0) -> 260 | J56: =_xlfn.IFNA(_xlfn.IFS(VentasMenudeo[[#This Row],[Producto]]=$A$2,VentasMenudeo[[#This Row],[Precio de Venta]]*VentasMenudeo[[#This Row],[Cantidad]]-VentasMenudeo[[#This Row],[Descuento]],VentasMenudeo[[#This Row],[Producto]]=$A$3,VentasMenudeo[[#This Row],[Precio de Venta]]*VentasMenudeo[[#This Row],[Cantidad]]-VentasMenudeo[[#This Row],[Descuento]],VentasMenudeo[[#This Row],[Producto]]=$A$4,VentasMenudeo[[#This Row],[Precio de Venta]]*VentasMenudeo[[#This Row],[Cantidad]]-VentasMenudeo[[#This Row],[Descuento]]),0) -> 260 | K56: 260
A57: 2022-06-24 | B57: Julio | C57: IPLAY MAX | D57: Grape Ice | E57: 1 | I57: =_xlfn.IFNA(VLOOKUP(VentasMenudeo[[#This Row],[Producto]],$A$2:$B$4,2,FALSE),0) -> 260 | J57: =_xlfn.IFNA(_xlfn.IFS(VentasMenudeo[[#This Row],[Producto]]=$A$2,VentasMenudeo[[#This Row],[Precio de Venta]]*VentasMenudeo[[#This Row],[Cantidad]]-VentasMenudeo[[#This Row],[Descuento]],VentasMenudeo[[#This Row],[Producto]]=$A$3,VentasMenudeo[[#This Row],[Precio de Venta]]*VentasMenudeo[[#This Row],[Cantidad]]-VentasMenudeo[[#This Row],[Descuento]],VentasMenudeo[[#This Row],[Producto]]=$A$4,VentasMenudeo[[#This Row],[Precio de Venta]]*VentasMenudeo[[#This Row],[Cantidad]]-VentasMenudeo[[#This Row],[Descuento]]),0) -> 260 | K57: 260
A58: 2022-06-27 | B58: Julio | C58: IPLAY MAX | D58: Cool Mint | E58: 6 | I58: =_xlfn.IFNA(VLOOKUP(VentasMenudeo[[#This Row],[Producto]],$A$2:$B$4,2,FALSE),0) -> 260 | J58: =_xlfn.IFNA(_xlfn.IFS(VentasMenudeo[[#This Row],[Producto]]=$A$2,VentasMenudeo[[#This Row],[Precio de Venta]]*VentasMenudeo[[#This Row],[Cantidad]]-VentasMenudeo[[#This Row],[Descuento]],VentasMenudeo[[#This Row],[Producto]]=$A$3,VentasMenudeo[[#This Row],[Precio de Venta]]*VentasMenudeo[[#This Row],[Cantidad]]-VentasMenudeo[[#This Row],[Descuento]],VentasMenudeo[[#This Row],[Producto]]=$A$4,VentasMenudeo[[#This Row],[Precio de Venta]]*VentasMenudeo[[#This Row],[Cantidad]]-VentasMenudeo[[#This Row],[Descuento]]),0) -> 1560 | K58: 1560
A59: 2022-06-27 | B59: Julio | C59: IPLAY MAX | D59: Energy Ice | E59: 1 | F59: Personal | I59: =_xlfn.IFNA(VLOOKUP(VentasMenudeo[[#This Row],[Producto]],$A$2:$B$4,2,FALSE),0) -> 260 | J59: =_xlfn.IFNA(_xlfn.IFS(VentasMenudeo[[#This Row],[Producto]]=$A$2,VentasMenudeo[[#This Row],[Precio de Venta]]*VentasMenudeo[[#This Row],[Cantidad]]-VentasMenudeo[[#This Row],[Descuento]],VentasMenudeo[[#This Row],[Producto]]=$A$3,VentasMenudeo[[#This Row],[Precio de Venta]]*VentasMenudeo[[#This Row],[Cantidad]]-VentasMenudeo[[#This Row],[Descuento]],VentasMenudeo[[#This Row],[Producto]]=$A$4,VentasMenudeo[[#This Row],[Precio de Venta]]*VentasMenudeo[[#This Row],[Cantidad]]-VentasMenudeo[[#This Row],[Descuento]]),0) -> 260 | K59: 260
A60: 2022-06-27 | B60: Julio | C60: IPLAY MAX | D60: Bluerazz | E60: 1 | I60: =_xlfn.IFNA(VLOOKUP(VentasMenudeo[[#This Row],[Producto]],$A$2:$B$4,2,FALSE),0) -> 260 | J60: =_xlfn.IFNA(_xlfn.IFS(VentasMenudeo[[#This Row],[Producto]]=$A$2,VentasMenudeo[[#This Row],[Precio de Venta]]*VentasMenudeo[[#This Row],[Cantidad]]-VentasMenudeo[[#This Row],[Descuento]],VentasMenudeo[[#This Row],[Producto]]=$A$3,VentasMenudeo[[#This Row],[Precio de Venta]]*VentasMenudeo[[#This Row],[Cantidad]]-VentasMenudeo[[#This Row],[Descuento]],VentasMenudeo[[#This Row],[Producto]]=$A$4,VentasMenudeo[[#This Row],[Precio de Venta]]*VentasMenudeo[[#This Row],[Cantidad]]-VentasMenudeo[[#This Row],[Descuento]]),0) -> 260 | K60: 260
A61: 2022-06-27 | B61: Julio | C61: IPLAY MAX | D61: Grapestraw | E61: 2 | I61: =_xlfn.IFNA(VLOOKUP(VentasMenudeo[[#This Row],[Producto]],$A$2:$B$4,2,FALSE),0) -> 260 | J61: =_xlfn.IFNA(_xlfn.IFS(VentasMenudeo[[#This Row],[Producto]]=$A$2,VentasMenudeo[[#This Row],[Precio de Venta]]*VentasMenudeo[[#This Row],[Cantidad]]-VentasMenudeo[[#This Row],[Descuento]],VentasMenudeo[[#This Row],[Producto]]=$A$3,VentasMenudeo[[#This Row],[Precio de Venta]]*VentasMenudeo[[#This Row],[Cantidad]]-VentasMenudeo[[#This Row],[Descuento]],VentasMenudeo[[#This Row],[Producto]]=$A$4,VentasMenudeo[[#This Row],[Precio de Venta]]*VentasMenudeo[[#This Row],[Cantidad]]-VentasMenudeo[[#This Row],[Descuento]]),0) -> 520 | K61: 520
A62: 2022-06-27 | B62: Julio | C62: IPLAY MAX | D62: Peach Ice | E62: 1 | I62: =_xlfn.IFNA(VLOOKUP(VentasMenudeo[[#This Row],[Producto]],$A$2:$B$4,2,FALSE),0) -> 260 | J62: =_xlfn.IFNA(_xlfn.IFS(VentasMenudeo[[#This Row],[Producto]]=$A$2,VentasMenudeo[[#This Row],[Precio de Venta]]*VentasMenudeo[[#This Row],[Cantidad]]-VentasMenudeo[[#This Row],[Descuento]],VentasMenudeo[[#This Row],[Producto]]=$A$3,VentasMenudeo[[#This Row],[Precio de Venta]]*VentasMenudeo[[#This Row],[Cantidad]]-VentasMenudeo[[#This Row],[Descuento]],VentasMenudeo[[#This Row],[Producto]]=$A$4,VentasMenudeo[[#This Row],[Precio de Venta]]*VentasMenudeo[[#This Row],[Cantidad]]-VentasMenudeo[[#This Row],[Descuento]]),0) -> 260 | K62: 260
A63: 2022-06-27 | B63: Julio | C63: IPLAY MAX | D63: Berry Watermelon | E63: 1 | I63: =_xlfn.IFNA(VLOOKUP(VentasMenudeo[[#This Row],[Producto]],$A$2:$B$4,2,FALSE),0) -> 260 | J63: =_xlfn.IFNA(_xlfn.IFS(VentasMenudeo[[#This Row],[Producto]]=$A$2,VentasMenudeo[[#This Row],[Precio de Venta]]*VentasMenudeo[[#This Row],[Cantidad]]-VentasMenudeo[[#This Row],[Descuento]],VentasMenudeo[[#This Row],[Producto]]=$A$3,VentasMenudeo[[#This Row],[Precio de Venta]]*VentasMenudeo[[#This Row],[Cantidad]]-VentasMenudeo[[#This Row],[Descuento]],VentasMenudeo[[#This Row],[Producto]]=$A$4,VentasMenudeo[[#This Row],[Precio de Venta]]*VentasMenudeo[[#This Row],[Cantidad]]-VentasMenudeo[[#This Row],[Descuento]]),0) -> 260 | K63: 260
A64: 2022-06-27 | B64: Julio | C64: IPLAY MAX | D64: Coconut | E64: 1 | I64: =_xlfn.IFNA(VLOOKUP(VentasMenudeo[[#This Row],[Producto]],$A$2:$B$4,2,FALSE),0) -> 260 | J64: =_xlfn.IFNA(_xlfn.IFS(VentasMenudeo[[#This Row],[Producto]]=$A$2,VentasMenudeo[[#This Row],[Precio de Venta]]*VentasMenudeo[[#This Row],[Cantidad]]-VentasMenudeo[[#This Row],[Descuento]],VentasMenudeo[[#This Row],[Producto]]=$A$3,VentasMenudeo[[#This Row],[Precio de Venta]]*VentasMenudeo[[#This Row],[Cantidad]]-VentasMenudeo[[#This Row],[Descuento]],VentasMenudeo[[#This Row],[Producto]]=$A$4,VentasMenudeo[[#This Row],[Precio de Venta]]*VentasMenudeo[[#This Row],[Cantidad]]-VentasMenudeo[[#This Row],[Descuento]]),0) -> 260 | K64: 260
A65: 2022-06-27 | B65: Julio | C65: IPLAY MAX | D65: Grape Ice | E65: 5 | I65: =_xlfn.IFNA(VLOOKUP(VentasMenudeo[[#This Row],[Producto]],$A$2:$B$4,2,FALSE),0) -> 260 | J65: =_xlfn.IFNA(_xlfn.IFS(VentasMenudeo[[#This Row],[Producto]]=$A$2,VentasMenudeo[[#This Row],[Precio de Venta]]*VentasMenudeo[[#This Row],[Cantidad]]-VentasMenudeo[[#This Row],[Descuento]],VentasMenudeo[[#This Row],[Producto]]=$A$3,VentasMenudeo[[#This Row],[Precio de Venta]]*VentasMenudeo[[#This Row],[Cantidad]]-VentasMenudeo[[#This Row],[Descuento]],VentasMenudeo[[#This Row],[Producto]]=$A$4,VentasMenudeo[[#This Row],[Precio de Venta]]*VentasMenudeo[[#This Row],[Cantidad]]-VentasMenudeo[[#This Row],[Descuento]]),0) -> 1300 | K65: 1300
A66: 2022-06-28 | B66: Julio | C66: IPLAY MAX | D66: Cool Mint | E66: 2 | I66: =_xlfn.IFNA(VLOOKUP(VentasMenudeo[[#This Row],[Producto]],$A$2:$B$4,2,FALSE),0) -> 260 | J66: =_xlfn.IFNA(_xlfn.IFS(VentasMenudeo[[#This Row],[Producto]]=$A$2,VentasMenudeo[[#This Row],[Precio de Venta]]*VentasMenudeo[[#This Row],[Cantidad]]-VentasMenudeo[[#This Row],[Descuento]],VentasMenudeo[[#This Row],[Producto]]=$A$3,VentasMenudeo[[#This Row],[Precio de Venta]]*VentasMenudeo[[#This Row],[Cantidad]]-VentasMenudeo[[#This Row],[Descuento]],VentasMenudeo[[#This Row],[Producto]]=$A$4,VentasMenudeo[[#This Row],[Precio de Venta]]*VentasMenudeo[[#This Row],[Cantidad]]-VentasMenudeo[[#This Row],[Descuento]]),0) -> 520 | K66: 520
A67: 2022-06-28 | B67: Julio | C67: IPLAY MAX | D67: Energy Ice | E67: 1 | I67: =_xlfn.IFNA(VLOOKUP(VentasMenudeo[[#This Row],[Producto]],$A$2:$B$4,2,FALSE),0) -> 260 | J67: =_xlfn.IFNA(_xlfn.IFS(VentasMenudeo[[#This Row],[Producto]]=$A$2,VentasMenudeo[[#This Row],[Precio de Venta]]*VentasMenudeo[[#This Row],[Cantidad]]-VentasMenudeo[[#This Row],[Descuento]],VentasMenudeo[[#This Row],[Producto]]=$A$3,VentasMenudeo[[#This Row],[Precio de Venta]]*VentasMenudeo[[#This Row],[Cantidad]]-VentasMenudeo[[#This Row],[Descuento]],VentasMenudeo[[#This Row],[Producto]]=$A$4,VentasMenudeo[[#This Row],[Precio de Venta]]*VentasMenudeo[[#This Row],[Cantidad]]-VentasMenudeo[[#This Row],[Descuento]]),0) -> 260 | K67: 260
A68: 2022-06-28 | B68: Julio | C68: IPLAY MAX | D68: Orange Ice | E68: 1 | I68: =_xlfn.IFNA(VLOOKUP(VentasMenudeo[[#This Row],[Producto]],$A$2:$B$4,2,FALSE),0) -> 260 | J68: =_xlfn.IFNA(_xlfn.IFS(VentasMenudeo[[#This Row],[Producto]]=$A$2,VentasMenudeo[[#This Row],[Precio de Venta]]*VentasMenudeo[[#This Row],[Cantidad]]-VentasMenudeo[[#This Row],[Descuento]],VentasMenudeo[[#This Row],[Producto]]=$A$3,VentasMenudeo[[#This Row],[Precio de Venta]]*VentasMenudeo[[#This Row],[Cantidad]]-VentasMenudeo[[#This Row],[Descuento]],VentasMenudeo[[#This Row],[Producto]]=$A$4,VentasMenudeo[[#This Row],[Precio de Venta]]*VentasMenudeo[[#This Row],[Cantidad]]-VentasMenudeo[[#This Row],[Descuento]]),0) -> 260 | K68: 260
A69: 2022-06-28 | B69: Julio | C69: IPLAY MAX | D69: Banana Ice | E69: 1 | I69: =_xlfn.IFNA(VLOOKUP(VentasMenudeo[[#This Row],[Producto]],$A$2:$B$4,2,FALSE),0) -> 260 | J69: =_xlfn.IFNA(_xlfn.IFS(VentasMenudeo[[#This Row],[Producto]]=$A$2,VentasMenudeo[[#This Row],[Precio de Venta]]*VentasMenudeo[[#This Row],[Cantidad]]-VentasMenudeo[[#This Row],[Descuento]],VentasMenudeo[[#This Row],[Producto]]=$A$3,VentasMenudeo[[#This Row],[Precio de Venta]]*VentasMenudeo[[#This Row],[Cantidad]]-VentasMenudeo[[#This Row],[Descuento]],VentasMenudeo[[#This Row],[Producto]]=$A$4,VentasMenudeo[[#This Row],[Precio de Venta]]*VentasMenudeo[[#This Row],[Cantidad]]-VentasMenudeo[[#This Row],[Descuento]]),0) -> 260 | K69: 260
A70: 2022-07-02 | B70: Julio | C70: IPLAY MAX | D70: GrapeFruit Berry | E70: 1 | I70: =_xlfn.IFNA(VLOOKUP(VentasMenudeo[[#This Row],[Producto]],$A$2:$B$4,2,FALSE),0) -> 260 | J70: =_xlfn.IFNA(_xlfn.IFS(VentasMenudeo[[#This Row],[Producto]]=$A$2,VentasMenudeo[[#This Row],[Precio de Venta]]*VentasMenudeo[[#This Row],[Cantidad]]-VentasMenudeo[[#This Row],[Descuento]],VentasMenudeo[[#This Row],[Producto]]=$A$3,VentasMenudeo[[#This Row],[Precio de Venta]]*VentasMenudeo[[#This Row],[Cantidad]]-VentasMenudeo[[#This Row],[Descuento]],VentasMenudeo[[#This Row],[Producto]]=$A$4,VentasMenudeo[[#This Row],[Precio de Venta]]*VentasMenudeo[[#This Row],[Cantidad]]-VentasMenudeo[[#This Row],[Descuento]]),0) -> 260 | K70: 260
A71: 2022-07-02 | B71: Julio | C71: IPLAY MAX | D71: Bluerazz | E71: 3 | I71: =_xlfn.IFNA(VLOOKUP(VentasMenudeo[[#This Row],[Producto]],$A$2:$B$4,2,FALSE),0) -> 260 | J71: =_xlfn.IFNA(_xlfn.IFS(VentasMenudeo[[#This Row],[Producto]]=$A$2,VentasMenudeo[[#This Row],[Precio de Venta]]*VentasMenudeo[[#This Row],[Cantidad]]-VentasMenudeo[[#This Row],[Descuento]],VentasMenudeo[[#This Row],[Producto]]=$A$3,VentasMenudeo[[#This Row],[Precio de Venta]]*VentasMenudeo[[#This Row],[Cantidad]]-VentasMenudeo[[#This Row],[Descuento]],VentasMenudeo[[#This Row],[Producto]]=$A$4,VentasMenudeo[[#This Row],[Precio de Venta]]*VentasMenudeo[[#This Row],[Cantidad]]-VentasMenudeo[[#This Row],[Descuento]]),0) -> 780 | K71: 780
A72: 2022-07-02 | B72: Julio | C72: IPLAY MAX | D72: Lemon Cucumber | E72: 1 | I72: =_xlfn.IFNA(VLOOKUP(VentasMenudeo[[#This Row],[Producto]],$A$2:$B$4,2,FALSE),0) -> 260 | J72: =_xlfn.IFNA(_xlfn.IFS(VentasMenudeo[[#This Row],[Producto]]=$A$2,VentasMenudeo[[#This Row],[Precio de Venta]]*VentasMenudeo[[#This Row],[Cantidad]]-VentasMenudeo[[#This Row],[Descuento]],VentasMenudeo[[#This Row],[Producto]]=$A$3,VentasMenudeo[[#This Row],[Precio de Venta]]*VentasMenudeo[[#This Row],[Cantidad]]-VentasMenudeo[[#This Row],[Descuento]],VentasMenudeo[[#This Row],[Producto]]=$A$4,VentasMenudeo[[#This Row],[Precio de Venta]]*VentasMenudeo[[#This Row],[Cantidad]]-VentasMenudeo[[#This Row],[Descuento]]),0) -> 260 | K72: 260
A73: 2022-07-02 | B73: Julio | C73: IPLAY MAX | D73: Grape Ice | E73: 1 | I73: =_xlfn.IFNA(VLOOKUP(VentasMenudeo[[#This Row],[Producto]],$A$2:$B$4,2,FALSE),0) -> 260 | J73: =_xlfn.IFNA(_xlfn.IFS(VentasMenudeo[[#This Row],[Producto]]=$A$2,VentasMenudeo[[#This Row],[Precio de Venta]]*VentasMenudeo[[#This Row],[Cantidad]]-VentasMenudeo[[#This Row],[Descuento]],VentasMenudeo[[#This Row],[Producto]]=$A$3,VentasMenudeo[[#This Row],[Precio de Venta]]*VentasMenudeo[[#This Row],[Cantidad]]-VentasMenudeo[[#This Row],[Descuento]],VentasMenudeo[[#This Row],[Producto]]=$A$4,VentasMenudeo[[#This Row],[Precio de Venta]]*VentasMenudeo[[#This Row],[Cantidad]]-VentasMenudeo[[#This Row],[Descuento]]),0) -> 260 | K73: 260
A74: 2022-07-02 | B74: Julio | C74: IPLAY MAX | D74: Mango Ice | E74: 1 | I74: =_xlfn.IFNA(VLOOKUP(VentasMenudeo[[#This Row],[Producto]],$A$2:$B$4,2,FALSE),0) -> 260 | J74: =_xlfn.IFNA(_xlfn.IFS(VentasMenudeo[[#This Row],[Producto]]=$A$2,VentasMenudeo[[#This Row],[Precio de Venta]]*VentasMenudeo[[#This Row],[Cantidad]]-VentasMenudeo[[#This Row],[Descuento]],VentasMenudeo[[#This Row],[Producto]]=$A$3,VentasMenudeo[[#This Row],[Precio de Venta]]*VentasMenudeo[[#This Row],[Cantidad]]-VentasMenudeo[[#This Row],[Descuento]],VentasMenudeo[[#This Row],[Producto]]=$A$4,VentasMenudeo[[#This Row],[Precio de Venta]]*VentasMenudeo[[#This Row],[Cantidad]]-VentasMenudeo[[#This Row],[Descuento]]),0) -> 260 | K74: 260
A75: 2022-07-10 | B75: Julio | C75: IPLAY MAX | D75: Cool Mint | E75: 6 | I75: =_xlfn.IFNA(VLOOKUP(VentasMenudeo[[#This Row],[Producto]],$A$2:$B$4,2,FALSE),0) -> 260 | J75: =_xlfn.IFNA(_xlfn.IFS(VentasMenudeo[[#This Row],[Producto]]=$A$2,VentasMenudeo[[#This Row],[Precio de Venta]]*VentasMenudeo[[#This Row],[Cantidad]]-VentasMenudeo[[#This Row],[Descuento]],VentasMenudeo[[#This Row],[Producto]]=$A$3,VentasMenudeo[[#This Row],[Precio de Venta]]*VentasMenudeo[[#This Row],[Cantidad]]-VentasMenudeo[[#This Row],[Descuento]],VentasMenudeo[[#This Row],[Producto]]=$A$4,VentasMenudeo[[#This Row],[Precio de Venta]]*VentasMenudeo[[#This Row],[Cantidad]]-VentasMenudeo[[#This Row],[Descuento]]),0) -> 1560 | K75: 1560
A76: 2022-07-10 | B76: Julio | C76: IPLAY MAX | D76: Guava | E76: 2 | I76: =_xlfn.IFNA(VLOOKUP(VentasMenudeo[[#This Row],[Producto]],$A$2:$B$4,2,FALSE),0) -> 260 | J76: =_xlfn.IFNA(_xlfn.IFS(VentasMenudeo[[#This Row],[Producto]]=$A$2,VentasMenudeo[[#This Row],[Precio de Venta]]*VentasMenudeo[[#This Row],[Cantidad]]-VentasMenudeo[[#This Row],[Descuento]],VentasMenudeo[[#This Row],[Producto]]=$A$3,VentasMenudeo[[#This Row],[Precio de Venta]]*VentasMenudeo[[#This Row],[Cantidad]]-VentasMenudeo[[#This Row],[Descuento]],VentasMenudeo[[#This Row],[Producto]]=$A$4,VentasMenudeo[[#This Row],[Precio de Venta]]*VentasMenudeo[[#This Row],[Cantidad]]-VentasMenudeo[[#This Row],[Descuento]]),0) -> 520 | K76: 520
A77: 2022-07-10 | B77: Julio | C77: IPLAY MAX | D77: Bluerazz | E77: 5 | I77: =_xlfn.IFNA(VLOOKUP(VentasMenudeo[[#This Row],[Producto]],$A$2:$B$4,2,FALSE),0) -> 260 | J77: =_xlfn.IFNA(_xlfn.IFS(VentasMenudeo[[#This Row],[Producto]]=$A$2,VentasMenudeo[[#This Row],[Precio de Venta]]*VentasMenudeo[[#This Row],[Cantidad]]-VentasMenudeo[[#This Row],[Descuento]],VentasMenudeo[[#This Row],[Producto]]=$A$3,VentasMenudeo[[#This Row],[Precio de Venta]]*VentasMenudeo[[#This Row],[Cantidad]]-VentasMenudeo[[#This Row],[Descuento]],VentasMenudeo[[#This Row],[Producto]]=$A$4,VentasMenudeo[[#This Row],[Precio de Venta]]*VentasMenudeo[[#This Row],[Cantidad]]-VentasMenudeo[[#This Row],[Descuento]]),0) -> 1300 | K77: 1300
A78: 2022-07-10 | B78: Julio | C78: IPLAY MAX | D78: Grapestraw | E78: 1 | I78: =_xlfn.IFNA(VLOOKUP(VentasMenudeo[[#This Row],[Producto]],$A$2:$B$4,2,FALSE),0) -> 260 | J78: =_xlfn.IFNA(_xlfn.IFS(VentasMenudeo[[#This Row],[Producto]]=$A$2,VentasMenudeo[[#This Row],[Precio de Venta]]*VentasMenudeo[[#This Row],[Cantidad]]-VentasMenudeo[[#This Row],[Descuento]],VentasMenudeo[[#This Row],[Producto]]=$A$3,VentasMenudeo[[#This Row],[Precio de Venta]]*VentasMenudeo[[#This Row],[Cantidad]]-VentasMenudeo[[#This Row],[Descuento]],VentasMenudeo[[#This Row],[Producto]]=$A$4,VentasMenudeo[[#This Row],[Precio de Venta]]*VentasMenudeo[[#This Row],[Cantidad]]-VentasMenudeo[[#This Row],[Descuento]]),0) -> 260 | K78: 260
A79: 2022-07-10 | B79: Julio | C79: IPLAY MAX | D79: Berry Watermelon | E79: 1 | I79: =_xlfn.IFNA(VLOOKUP(VentasMenudeo[[#This Row],[Producto]],$A$2:$B$4,2,FALSE),0) -> 260 | J79: =_xlfn.IFNA(_xlfn.IFS(VentasMenudeo[[#This Row],[Producto]]=$A$2,VentasMenudeo[[#This Row],[Precio de Venta]]*VentasMenudeo[[#This Row],[Cantidad]]-VentasMenudeo[[#This Row],[Descuento]],VentasMenudeo[[#This Row],[Producto]]=$A$3,VentasMenudeo[[#This Row],[Precio de Venta]]*VentasMenudeo[[#This Row],[Cantidad]]-VentasMenudeo[[#This Row],[Descuento]],VentasMenudeo[[#This Row],[Producto]]=$A$4,VentasMenudeo[[#This Row],[Precio de Venta]]*VentasMenudeo[[#This Row],[Cantidad]]-VentasMenudeo[[#This Row],[Descuento]]),0) -> 260 | K79: 260
A80: 2022-07-10 | B80: Julio | C80: IPLAY MAX | D80: Coconut | E80: 1 | I80: =_xlfn.IFNA(VLOOKUP(VentasMenudeo[[#This Row],[Producto]],$A$2:$B$4,2,FALSE),0) -> 260 | J80: =_xlfn.IFNA(_xlfn.IFS(VentasMenudeo[[#This Row],[Producto]]=$A$2,VentasMenudeo[[#This Row],[Precio de Venta]]*VentasMenudeo[[#This Row],[Cantidad]]-VentasMenudeo[[#This Row],[Descuento]],VentasMenudeo[[#This Row],[Producto]]=$A$3,VentasMenudeo[[#This Row],[Precio de Venta]]*VentasMenudeo[[#This Row],[Cantidad]]-VentasMenudeo[[#This Row],[Descuento]],VentasMenudeo[[#This Row],[Producto]]=$A$4,VentasMenudeo[[#This Row],[Precio de Venta]]*VentasMenudeo[[#This Row],[Cantidad]]-VentasMenudeo[[#This Row],[Descuento]]),0) -> 260 | K80: 260
A81: 2022-07-10 | B81: Julio | C81: IPLAY MAX | D81: Lemon Cucumber | E81: 1 | I81: =_xlfn.IFNA(VLOOKUP(VentasMenudeo[[#This Row],[Producto]],$A$2:$B$4,2,FALSE),0) -> 260 | J81: =_xlfn.IFNA(_xlfn.IFS(VentasMenudeo[[#This Row],[Producto]]=$A$2,VentasMenudeo[[#This Row],[Precio de Venta]]*VentasMenudeo[[#This Row],[Cantidad]]-VentasMenudeo[[#This Row],[Descuento]],VentasMenudeo[[#This Row],[Producto]]=$A$3,VentasMenudeo[[#This Row],[Precio de Venta]]*VentasMenudeo[[#This Row],[Cantidad]]-VentasMenudeo[[#This Row],[Descuento]],VentasMenudeo[[#This Row],[Producto]]=$A$4,VentasMenudeo[[#This Row],[Precio de Venta]]*VentasMenudeo[[#This Row],[Cantidad]]-VentasMenudeo[[#This Row],[Descuento]]),0) -> 260 | K81: 260
A82: 2022-07-10 | B82: Julio | C82: IPLAY MAX | D82: Passion Fruit | E82: 2 | I82: =_xlfn.IFNA(VLOOKUP(VentasMenudeo[[#This Row],[Producto]],$A$2:$B$4,2,FALSE),0) -> 260 | J82: =_xlfn.IFNA(_xlfn.IFS(VentasMenudeo[[#This Row],[Producto]]=$A$2,VentasMenudeo[[#This Row],[Precio de Venta]]*VentasMenudeo[[#This Row],[Cantidad]]-VentasMenudeo[[#This Row],[Descuento]],VentasMenudeo[[#This Row],[Producto]]=$A$3,VentasMenudeo[[#This Row],[Precio de Venta]]*VentasMenudeo[[#This Row],[Cantidad]]-VentasMenudeo[[#This Row],[Descuento]],VentasMenudeo[[#This Row],[Producto]]=$A$4,VentasMenudeo[[#This Row],[Precio de Venta]]*VentasMenudeo[[#This Row],[Cantidad]]-VentasMenudeo[[#This Row],[Descuento]]),0) -> 520 | K82: 520
A83: 2022-07-10 | B83: Julio | C83: IPLAY MAX | D83: Banana Ice | E83: 4 | I83: =_xlfn.IFNA(VLOOKUP(VentasMenudeo[[#This Row],[Producto]],$A$2:$B$4,2,FALSE),0) -> 260 | J83: =_xlfn.IFNA(_xlfn.IFS(VentasMenudeo[[#This Row],[Producto]]=$A$2,VentasMenudeo[[#This Row],[Precio de Venta]]*VentasMenudeo[[#This Row],[Cantidad]]-VentasMenudeo[[#This Row],[Descuento]],VentasMenudeo[[#This Row],[Producto]]=$A$3,VentasMenudeo[[#This Row],[Precio de Venta]]*VentasMenudeo[[#This Row],[Cantidad]]-VentasMenudeo[[#This Row],[Descuento]],VentasMenudeo[[#This Row],[Producto]]=$A$4,VentasMenudeo[[#This Row],[Precio de Venta]]*VentasMenudeo[[#This Row],[Cantidad]]-VentasMenudeo[[#This Row],[Descuento]]),0) -> 1040 | K83: 1040
A84: 2022-07-14 | B84: Julio | C84: IPLAY MAX | D84: Cool Mint | E84: 2 | I84: =_xlfn.IFNA(VLOOKUP(VentasMenudeo[[#This Row],[Producto]],$A$2:$B$4,2,FALSE),0) -> 260 | J84: =_xlfn.IFNA(_xlfn.IFS(VentasMenudeo[[#This Row],[Producto]]=$A$2,VentasMenudeo[[#This Row],[Precio de Venta]]*VentasMenudeo[[#This Row],[Cantidad]]-VentasMenudeo[[#This Row],[Descuento]],VentasMenudeo[[#This Row],[Producto]]=$A$3,VentasMenudeo[[#This Row],[Precio de Venta]]*VentasMenudeo[[#This Row],[Cantidad]]-VentasMenudeo[[#This Row],[Descuento]],VentasMenudeo[[#This Row],[Producto]]=$A$4,VentasMenudeo[[#This Row],[Precio de Venta]]*VentasMenudeo[[#This Row],[Cantidad]]-VentasMenudeo[[#This Row],[Descuento]]),0) -> 520 | K84: 520
A85: 2022-07-14 | B85: Julio | C85: IPLAY MAX | D85: Grapestraw | E85: 2 | I85: =_xlfn.IFNA(VLOOKUP(VentasMenudeo[[#This Row],[Producto]],$A$2:$B$4,2,FALSE),0) -> 260 | J85: =_xlfn.IFNA(_xlfn.IFS(VentasMenudeo[[#This Row],[Producto]]=$A$2,VentasMenudeo[[#This Row],[Precio de Venta]]*VentasMenudeo[[#This Row],[Cantidad]]-VentasMenudeo[[#This Row],[Descuento]],VentasMenudeo[[#This Row],[Producto]]=$A$3,VentasMenudeo[[#This Row],[Precio de Venta]]*VentasMenudeo[[#This Row],[Cantidad]]-VentasMenudeo[[#This Row],[Descuento]],VentasMenudeo[[#This Row],[Producto]]=$A$4,VentasMenudeo[[#This Row],[Precio de Venta]]*VentasMenudeo[[#This Row],[Cantidad]]-VentasMenudeo[[#This Row],[Descuento]]),0) -> 520 | K85: 520
A86: 2022-07-14 | B86: Julio | C86: IPLAY MAX | D86: Berry Watermelon | E86: 1 | I86: =_xlfn.IFNA(VLOOKUP(VentasMenudeo[[#This Row],[Producto]],$A$2:$B$4,2,FALSE),0) -> 260 | J86: =_xlfn.IFNA(_xlfn.IFS(VentasMenudeo[[#This Row],[Producto]]=$A$2,VentasMenudeo[[#This Row],[Precio de Venta]]*VentasMenudeo[[#This Row],[Cantidad]]-VentasMenudeo[[#This Row],[Descuento]],VentasMenudeo[[#This Row],[Producto]]=$A$3,VentasMenudeo[[#This Row],[Precio de Venta]]*VentasMenudeo[[#This Row],[Cantidad]]-VentasMenudeo[[#This Row],[Descuento]],VentasMenudeo[[#This Row],[Producto]]=$A$4,VentasMenudeo[[#This Row],[Precio de Venta]]*VentasMenudeo[[#This Row],[Cantidad]]-VentasMenudeo[[#This Row],[Descuento]]),0) -> 260 | K86: 260
A87: 2022-07-14 | B87: Julio | C87: IPLAY MAX | D87: Grape Ice | E87: 4 | I87: =_xlfn.IFNA(VLOOKUP(VentasMenudeo[[#This Row],[Producto]],$A$2:$B$4,2,FALSE),0) -> 260 | J87: =_xlfn.IFNA(_xlfn.IFS(VentasMenudeo[[#This Row],[Producto]]=$A$2,VentasMenudeo[[#This Row],[Precio de Venta]]*VentasMenudeo[[#This Row],[Cantidad]]-VentasMenudeo[[#This Row],[Descuento]],VentasMenudeo[[#This Row],[Producto]]=$A$3,VentasMenudeo[[#This Row],[Precio de Venta]]*VentasMenudeo[[#This Row],[Cantidad]]-VentasMenudeo[[#This Row],[Descuento]],VentasMenudeo[[#This Row],[Producto]]=$A$4,VentasMenudeo[[#This Row],[Precio de Venta]]*VentasMenudeo[[#This Row],[Cantidad]]-VentasMenudeo[[#This Row],[Descuento]]),0) -> 1040 | K87: 1040
A88: 2022-07-14 | B88: Julio | C88: IPLAY MAX | D88: Banana Ice | E88: 1 | I88: =_xlfn.IFNA(VLOOKUP(VentasMenudeo[[#This Row],[Producto]],$A$2:$B$4,2,FALSE),0) -> 260 | J88: =_xlfn.IFNA(_xlfn.IFS(VentasMenudeo[[#This Row],[Producto]]=$A$2,VentasMenudeo[[#This Row],[Precio de Venta]]*VentasMenudeo[[#This Row],[Cantidad]]-VentasMenudeo[[#This Row],[Descuento]],VentasMenudeo[[#This Row],[Producto]]=$A$3,VentasMenudeo[[#This Row],[Precio de Venta]]*VentasMenudeo[[#This Row],[Cantidad]]-VentasMenudeo[[#This Row],[Descuento]],VentasMenudeo[[#This Row],[Producto]]=$A$4,VentasMenudeo[[#This Row],[Precio de Venta]]*VentasMenudeo[[#This Row],[Cantidad]]-VentasMenudeo[[#This Row],[Descuento]]),0) -> 260 | K88: 260
E89: =SUM(VentasMenudeo[Cantidad]) -> 137 | H89: =SUBTOTAL(109,VentasMenudeo[Descuento]) -> 905 | J89: =SUBTOTAL(109,VentasMenudeo[Venta Total]) -> 34715 | K89: =SUBTOTAL(109,VentasMenudeo[Transferencia]) -> 31095 | L89: =SUBTOTAL(109,VentasMenudeo[Efectivo]) -> 3620
E93: =SUM(E38:E88) -> 93 | F93: =145*E93 -> 13485

Sheet Ventas Mayoreo
A4: Fecha | B4: Vendedor | C4: Producto | D4: Sabor | E4: Cantidad | F4: Precio Mayoreo | G4: Precio de venta | H4: Ventas Totales | I4: Transferencia | J4: Efectivo
A5: 2022-06-02 | B5: Julio | C5: IPLAY MAX | D5: Sour Apple Melon | E5: 2 | F5: Vape Maza | G5: =_xlfn.IFNA(VLOOKUP(VentasMayoreo[[#This Row],[Precio Mayoreo]],PreciosMayoreo[],3,0),0) -> 150 | H5: =VentasMayoreo[[#This Row],[Cantidad]]*VentasMayoreo[[#This Row],[Precio de venta]] -> 300 | J5: 300
A6: 2022-06-02 | B6: Julio | C6: IPLAY MAX | D6: StrawBerry Lychee | E6: 3 | F6: Vape Maza | G6: =_xlfn.IFNA(VLOOKUP(VentasMayoreo[[#This Row],[Precio Mayoreo]],PreciosMayoreo[],3,0),0) -> 150 | H6: =VentasMayoreo[[#This Row],[Cantidad]]*VentasMayoreo[[#This Row],[Precio de venta]] -> 450 | J6: 450
A7: 2022-06-02 | B7: Julio | C7: IPLAY MAX | D7: Guava | E7: 2 | F7: Vape Maza | G7: =_xlfn.IFNA(VLOOKUP(VentasMayoreo[[#This Row],[Precio Mayoreo]],PreciosMayoreo[],3,0),0) -> 150 | H7: =VentasMayoreo[[#This Row],[Cantidad]]*VentasMayoreo[[#This Row],[Precio de venta]] -> 300 | J7: 300
A8: 2022-06-02 | B8: Julio | C8: IPLAY MAX | D8: Bluerazz | E8: 3 | F8: Vape Maza | G8: =_xlfn.IFNA(VLOOKUP(VentasMayoreo[[#This Row],[Precio Mayoreo]],PreciosMayoreo[],3,0),0) -> 150 | H8: =VentasMayoreo[[#This Row],[Cantidad]]*VentasMayoreo[[#This Row],[Precio de venta]] -> 450 | J8: 450
A9: 2022-06-02 | B9: Julio | C9: IPLAY MAX | D9: GrapeFruit Berry | E9: 2 | F9: Vape Maza | G9: =_xlfn.IFNA(VLOOKUP(VentasMayoreo[[#This Row],[Precio Mayoreo]],PreciosMayoreo[],3,0),0) -> 150 | H9: =VentasMayoreo[[#This Row],[Cantidad]]*VentasMayoreo[[#This Row],[Precio de venta]] -> 300 | J9: 300
A10: 2022-06-02 | B10: Julio | C10: IPLAY MAX | D10: Grapestraw | E10: 3 | F10: Vape Maza | G10: =_xlfn.IFNA(VLOOKUP(VentasMayoreo[[#This Row],[Precio Mayoreo]],PreciosMayoreo[],3,0),0) -> 150 | H10: =VentasMayoreo[[#This Row],[Cantidad]]*VentasMayoreo[[#This Row],[Precio de venta]] -> 450 | J10: 450
A11: 2022-06-02 | B11: Julio | C11: IPLAY MAX | D11: Cool Mint | E11: 3 | F11: Vape Maza | G11: =_xlfn.IFNA(VLOOKUP(VentasMayoreo[[#This Row],[Precio Mayoreo]],PreciosMayoreo[],3,0),0) -> 150 | H11: =VentasMayoreo[[#This Row],[Cantidad]]*VentasMayoreo[[#This Row],[Precio de venta]] -> 450 | J11: 450
A12: 2022-06-02 | B12: Julio | C12: IPLAY MAX | D12: Peach Ice | E12: 2 | F12: Vape Maza | G12: =_xlfn.IFNA(VLOOKUP(VentasMayoreo[[#This Row],[Precio Mayoreo]],PreciosMayoreo[],3,0),0) -> 150 | H12: =VentasMayoreo[[#This Row],[Cantidad]]*VentasMayoreo[[#This Row],[Precio de venta]] -> 300 | J12: 300
A13: 2022-06-24 | B13: Julio | C13: IPLAY MAX | D13: Energy Ice | E13: 3 | F13: Vape Maza N | G13: =_xlfn.IFNA(VLOOKUP(VentasMayoreo[[#This Row],[Precio Mayoreo]],PreciosMayoreo[],3,0),0) -> 155 | H13: =VentasMayoreo[[#This Row],[Cantidad]]*VentasMayoreo[[#This Row],[Precio de venta]] -> 465 | I13: 465
A14: 2022-06-24 | B14: Julio | C14: IPLAY MAX | D14: Berry Watermelon | E14: 3 | F14: Vape Maza N | G14: =_xlfn.IFNA(VLOOKUP(VentasMayoreo[[#This Row],[Precio Mayoreo]],PreciosMayoreo[],3,0),0) -> 155 | H14: =VentasMayoreo[[#This Row],[Cantidad]]*VentasMayoreo[[#This Row],[Precio de venta]] -> 465 | I14: 465
A15: 2022-06-24 | B15: Julio | C15: IPLAY MAX | D15: Bluerazz | E15: 3 | F15: Vape Maza N | G15: =_xlfn.IFNA(VLOOKUP(VentasMayoreo[[#This Row],[Precio Mayoreo]],PreciosMayoreo[],3,0),0) -> 155 | H15: =VentasMayoreo[[#This Row],[Cantidad]]*VentasMayoreo[[#This Row],[Precio de venta]] -> 465 | I15: 465
A16: 2022-06-24 | B16: Julio | C16: IPLAY MAX | D16: GrapeFruit Berry | E16: 3 | F16: Vape Maza N | G16: =_xlfn.IFNA(VLOOKUP(VentasMayoreo[[#This Row],[Precio Mayoreo]],PreciosMayoreo[],3,0),0) -> 155 | H16: =VentasMayoreo[[#This Row],[Cantidad]]*VentasMayoreo[[#This Row],[Precio de venta]] -> 465 | I16: 465
A17: 2022-06-24 | B17: Julio | C17: IPLAY MAX | D17: Grapestraw | E17: 3 | F17: Vape Maza N | G17: =_xlfn.IFNA(VLOOKUP(VentasMayoreo[[#This Row],[Precio Mayoreo]],PreciosMayoreo[],3,0),0) -> 155 | H17: =VentasMayoreo[[#This Row],[Cantidad]]*VentasMayoreo[[#This Row],[Precio de venta]] -> 465 | I17: 465
A18: 2022-06-24 | B18: Julio | C18: IPLAY MAX | D18: Cool Mint | E18: 5 | F18: Vape Maza N | G18: =_xlfn.IFNA(VLOOKUP(VentasMayoreo[[#This Row],[Precio Mayoreo]],PreciosMayoreo[],3,0),0) -> 155 | H18: =VentasMayoreo[[#This Row],[Cantidad]]*VentasMayoreo[[#This Row],[Precio de venta]] -> 775 | I18: 775
A19: 2022-06-24 | B19: Julio | C19: IPLAY MAX | D19: Grape Ice | E19: 4 | F19: Vape Maza N | G19: =_xlfn.IFNA(VLOOKUP(VentasMayoreo[[#This Row],[Precio Mayoreo]],PreciosMayoreo[],3,0),0) -> 155 | H19: =VentasMayoreo[[#This Row],[Cantidad]]*VentasMayoreo[[#This Row],[Precio de venta]] -> 620 | I19: 620
A20: 2022-06-24 | B20: Julio | C20: IPLAY MAX | D20: Orange Ice | E20: 2 | F20: Vape Maza N | G20: =_xlfn.IFNA(VLOOKUP(VentasMayoreo[[#This Row],[Precio Mayoreo]],PreciosMayoreo[],3,0),0) -> 155 | H20: =VentasMayoreo[[#This Row],[Cantidad]]*VentasMayoreo[[#This Row],[Precio de venta]] -> 310 | I20: 310
A21: 2022-06-24 | B21: Julio | C21: IPLAY MAX | D21: Mango Ice | E21: 2 | F21: Vape Maza N | G21: =_xlfn.IFNA(VLOOKUP(VentasMayoreo[[#This Row],[Precio Mayoreo]],PreciosMayoreo[],3,0),0) -> 155 | H21: =VentasMayoreo[[#This Row],[Cantidad]]*VentasMayoreo[[#This Row],[Precio de venta]] -> 310 | I21: 310
A22: 2022-06-24 | B22: Julio | C22: IPLAY MAX | D22: Peach Ice | E22: 2 | F22: Vape Maza N | G22: =_xlfn.IFNA(VLOOKUP(VentasMayoreo[[#This Row],[Precio Mayoreo]],PreciosMayoreo[],3,0),0) -> 155 | H22: =VentasMayoreo[[#This Row],[Cantidad]]*VentasMayoreo[[#This Row],[Precio de venta]] -> 310 | I22: 310
A23: 2022-06-24 | B23: Julio | C23: IPLAY MAX | D23: Banana Ice | E23: 2 | F23: Vape Maza N | G23: =_xlfn.IFNA(VLOOKUP(VentasMayoreo[[#This Row],[Precio Mayoreo]],PreciosMayoreo[],3,0),0) -> 155 | H23: =VentasMayoreo[[#This Row],[Cantidad]]*VentasMayoreo[[#This Row],[Precio de venta]] -> 310 | I23: 310
E24: =SUBTOTAL(109,VentasMayoreo[Cantidad]) -> 52 | H24: =SUM(VentasMayoreo[Ventas Totales]) -> 7960 | I24: =SUBTOTAL(109,VentasMayoreo[Transferencia]) -> 4960 | J24: =SUBTOTAL(109,VentasMayoreo[Efectivo]) -> 3000

Sheet Inventario
A2: Producto | B2: Sabor | C2: Cantidad | E2: Etiquetas de fila | F2: Suma de Cantidad | J2: Pago | M2: Precio | N2: 175
A3: IPLAY MAX | B3: Energy Ice | C3: 4 | E3: IPLAY MAX | F3: 173 | J3: =173*150 -> 25950 | K3: Pz | M3: Pz Entregadas | N3: 54
A4: IPLAY MAX | B4: Sour Apple Melon | C4: 3 | E4: Cool Mint | F4: 16 | I4: Helena | J4: =K4*N2 -> 2450 | K4: 14
A5: IPLAY MAX | B5: Cool Mint | C5: 2 | E5: Energy Ice | F5: 9
A6: IPLAY MAX | B6: GrapeFruit Berry | C6: 4 | E6: Lush Ice | F6: 0
A7: IPLAY MAX | B7: Lush Ice | C7: 3 | E7: StrawBerry Lychee | F7: 3
A8: IPLAY MAX | B8: StrawBerry Lychee | C8: 1 | E8: Sour Apple Melon | F8: 16
A9: IPLAY MAX | B9: Energy Ice | C9: -2 | E9: GrapeFruit Berry | F9: 16
A10: IPLAY MAX | B10: Sour Apple Melon | C10: -1 | E10: Guava | F10: 8
A11: IPLAY MAX | B11: Energy Ice | C11: -1 | E11: Bluerazz | F11: 11
A12: IPLAY MAX | B12: Lush Ice | C12: -1 | E12: Grapestraw | F12: 10
A13: IPLAY MAX | B13: GrapeFruit Berry | C13: -1 | E13: Peach Ice | F13: 17
A14: IPLAY MAX | B14: GrapeFruit Berry | C14: -1 | E14: Berry Watermelon | F14: 13
A15: IPLAY MAX | B15: Cool Mint | C15: -1 | E15: Coconut | F15: 18
A16: IPLAY MAX | B16: Cool Mint | C16: -1 | E16: Lemon Cucumber | F16: 7
A17: IPLAY MAX | B17: Lush Ice | C17: -1 | E17: Grape Ice | F17: 15 | J17: =J3-SUM(J4:J16) -> 23500 | K17: =N3-SUM(K4:K16) -> 40 | M17: =(173-54)*130 -> 15470
A18: IPLAY MAX | B18: Lush Ice | C18: -1 | E18: Orange Ice | F18: 7
A19: IPLAY MAX | B19: StrawBerry Lychee | C19: -1 | E19: Mango Ice | F19: 3
A20: IPLAY MAX | B20: Sour Apple Melon | C20: -1 | E20: Banana Ice | F20: 2
A21: IPLAY MAX | B21: Energy Ice | C21: -1 | E21: Passion Fruit | F21: 2
A22: IPLAY MAX | B22: GrapeFruit Berry | C22: -1
A23: IPLAY MAX | B23: Sour Apple Melon | C23: 10
A24: IPLAY MAX | B24: StrawBerry Lychee | C24: 10
A25: IPLAY MAX | B25: Guava | C25: 10
A26: IPLAY MAX | B26: Bluerazz | C26: 10
A27: IPLAY MAX | B27: GrapeFruit Berry | C27: 10
A28: IPLAY MAX | B28: Grapestraw | C28: 10
A29: IPLAY MAX | B29: Cool Mint | C29: 10
A30: IPLAY MAX | B30: Peach Ice | C30: 10
A31: IPLAY MAX | B31: Peach Ice | C31: -1
A32: IPLAY MAX | B32: Cool Mint | C32: -1
A33: IPLAY MAX | B33: Peach Ice | C33: -1
A34: IPLAY MAX | B34: Cool Mint | C34: -1
A35: IPLAY MAX | B35: GrapeFruit Berry | C35: -1
A36: IPLAY MAX | B36: Sour Apple Melon | C36: -2
A37: IPLAY MAX | B37: StrawBerry Lychee | C37: -3
A38: IPLAY MAX | B38: Guava | C38: -2
A39: IPLAY MAX | B39: Bluerazz | C39: -3
A40: IPLAY MAX | B40: GrapeFruit Berry | C40: -2
A41: IPLAY MAX | B41: Grapestraw | C41: -3
A42: IPLAY MAX | B42: Cool Mint | C42: -3
A43: IPLAY MAX | B43: Peach Ice | C43: -2
A44: IPLAY MAX | B44: Cool Mint | C44: -4
A45: IPLAY MAX | B45: Grapestraw | C45: -3
A46: IPLAY MAX | B46: Cool Mint | C46: -1
A47: IPLAY MAX | B47: StrawBerry Lychee | C47: -2
A48: IPLAY MAX | B48: Sour Apple Melon | C48: -1
A49: IPLAY MAX | B49: GrapeFruit Berry | C49: -3
A50: IPLAY MAX | B50: GrapeFruit Berry | C50: -2
A51: IPLAY MAX | B51: Bluerazz | C51: -2
A52: IPLAY MAX | B52: Peach Ice | C52: -1
A53: IPLAY MAX | B53: Peach Ice | C53: -1
A54: IPLAY MAX | B54: GrapeFruit Berry | C54: -1
A55: IPLAY MAX | B55: Bluerazz | C55: -2
A56: IPLAY MAX | B56: GrapeFruit Berry | C56: -1
A57: IPLAY MAX | B57: StrawBerry Lychee | C57: -2
A58: IPLAY MAX | B58: GrapeFruit Berry | C58: -1
A59: IPLAY MAX | B59: Sour Apple Melon | C59: -2
A60: IPLAY MAX | B60: Guava | C60: -2
A61: IPLAY MAX | B61: Guava | C61: -1
A62: IPLAY MAX | B62: Bluerazz | C62: -2
A63: IPLAY MAX | B63: Bluerazz | C63: -1
A64: IPLAY MAX | B64: Peach Ice | C64: -2
A65: IPLAY MAX | B65: Peach Ice | C65: -1
A66: IPLAY MAX | B66: Grapestraw | C66: -3
A67: IPLAY MAX | B67: Grapestraw | C67: -1
A68: IPLAY MAX | B68: Energy Ice | C68: 15
A69: IPLAY MAX | B69: Sour Apple Melon | C69: 10
A70: IPLAY MAX | B70: Berry Watermelon | C70: 20
A71: IPLAY MAX | B71: Guava | C71: 5
A72: IPLAY MAX | B72: Bluerazz | C72: 15
A73: IPLAY MAX | B73: GrapeFruit Berry | C73: 10
A74: IPLAY MAX | B74: Grapestraw | C74: 10
A75: IPLAY MAX | B75: Cool Mint | C75: 25
A76: IPLAY MAX | B76: Coconut | C76: 20
A77: IPLAY MAX | B77: Lemon Cucumber | C77: 10
A78: IPLAY MAX | B78: Grape Ice | C78: 20
A79: IPLAY MAX | B79: Orange Ice | C79: 10
A80: IPLAY MAX | B80: Peach Ice | C80: 10
A81: IPLAY MAX | B81: Mango Ice | C81: 6
A82: IPLAY MAX | B82: Banana Ice | C82: 10
A83: IPLAY MAX | B83: Energy Ice | C83: -3
A84: IPLAY MAX | B84: Berry Watermelon | C84: -3
A85: IPLAY MAX | B85: Bluerazz | C85: -3
A86: IPLAY MAX | B86: GrapeFruit Berry | C86: -3
A87: IPLAY MAX | B87: Grapestraw | C87: -3
A88: IPLAY MAX | B88: Cool Mint | C88: -5
A89: IPLAY MAX | B89: Grape Ice | C89: -4
A90: IPLAY MAX | B90: Orange Ice | C90: -2
A91: IPLAY MAX | B91: Mango Ice | C91: -2
A92: IPLAY MAX | B92: Peach Ice | C92: -2
A93: IPLAY MAX | B93: Banana Ice | C93: -2
A94: IPLAY MAX | B94: Cool Mint | C94: -2
A95: IPLAY MAX | B95: Cool Mint | C95: -1
A96: IPLAY MAX | B96: Energy Ice | C96: -1
A97: IPLAY MAX | B97: Bluerazz | C97: -2
A98: IPLAY MAX | B98: Grapestraw | C98: -2
A99: IPLAY MAX | B99: Peach Ice | C99: -1
A100: IPLAY MAX | B100: Berry Watermelon | C100: -1
A101: IPLAY MAX | B101: Lemon Cucumber | C101: -1
A102: IPLAY MAX | B102: Grape Ice | C102: -1
A103: IPLAY MAX | B103: Passion Fruit | C103: 4
A104: IPLAY MAX | B104: Cool Mint | C104: -6
A105: IPLAY MAX | B105: Energy Ice | C105: -1
A106: IPLAY MAX | B106: Bluerazz | C106: -1
A107: IPLAY MAX | B107: Grapestraw | C107: -2
A108: IPLAY MAX | B108: Peach Ice | C108: -1
A109: IPLAY MAX | B109: Berry Watermelon | C109: -1
A110: IPLAY MAX | B110: Coconut | C110: -1
A111: IPLAY MAX | B111: Grape Ice | C111: -5
A112: IPLAY MAX | B112: Cool Mint | C112: -2
A113: IPLAY MAX | B113: Energy Ice | C113: -1
A114: IPLAY MAX | B114: Orange Ice | C114: -1
A115: IPLAY MAX | B115: Banana Ice | C115: -1
A116: IPLAY MAX | B116: Bluerazz | C116: 10
A117: IPLAY MAX | B117: GrapeFruit Berry | C117: 10
A118: IPLAY MAX | B118: Grapestraw | C118: 10
A119: IPLAY MAX | B119: Cool Mint | C119: 15
A120: IPLAY MAX | B120: Grape Ice | C120: 10
A121: IPLAY MAX | B121: Peach Ice | C121: 10
A122: IPLAY MAX | B122: GrapeFruit Berry | C122: -1
A123: IPLAY MAX | B123: Bluerazz | C123: -3
A124: IPLAY MAX | B124: Lemon Cucumber | C124: -1
A125: IPLAY MAX | B125: Grape Ice | C125: -1
A126: IPLAY MAX | B126: Mango Ice | C126: -1
A127: IPLAY MAX | B127: Cool Mint | C127: -6
A128: IPLAY MAX | B128: Guava | C128: -2
A129: IPLAY MAX | B129: Bluerazz | C129: -5
A130: IPLAY MAX | B130: Grapestraw | C130: -1
A131: IPLAY MAX | B131: Berry Watermelon | C131: -1
A132: IPLAY MAX | B132: Coconut | C132: -1
A133: IPLAY MAX | B133: Lemon Cucumber | C133: -1
A134: IPLAY MAX | B134: Passion Fruit | C134: -2
A135: IPLAY MAX | B135: Banana Ice | C135: -4
A136: IPLAY MAX | B136: Cool Mint | C136: -2
A137: IPLAY MAX | B137: Grapestraw | C137: -2
A138: IPLAY MAX | B138: Berry Watermelon | C138: -1
A139: IPLAY MAX | B139: Grape Ice | C139: -4
A140: IPLAY MAX | B140: Banana Ice | C140: -1

Sheet Promociones
B1: Promoción Menudeo | G1: Tipo | H1: IPLAY MAX | J1: Precio Mayoreo | K1: Cantidad | L1: Precio Venta | N1: Cantidad | O1: Precio C/U
A2: Tipo | B2: Promocion | C2: Descuento | J2: Vape Maza | K2: 15-20 | L2: 150 | N2: 15-20 | O2: 183
A3: ELF BAR | B3: No aplica | C3: 0 | G3: Etiquetas de fila | J3: Vape Maza N | L3: 155 | N3: 21-30 | O3: 173
A4: IPLAY CUBE | B4: No aplica | C4: 0 | G4: $20 Descuento | N4: 31-40 | O4: 163
A5: IPLAY MAX | B5: No aplica | C5: 0 | G5: No aplica | N5: 41-50 | O5: 153
A6: IPLAY CUBE | B6: 3er Vape | C6: 25 | G6: Personal | N6: 51-100 | O6: 143
A7: IPLAY MAX | B7: $20 Descuento | C7: 20 | G7: $20 peso
A8: IPLAY MAX | B8: Personal | C8: 137
A9: IPLAY MAX | B9: $20 peso | C9: 20
F15: =260-123 -> 137

Sheet Gastos
A1: Fecha | B1: Concepto | C1: Monto | D1: Socio | E1: Transferencia | F1: Efectvivo | K1: Concepto
A2: 2022-04-26 | B2: Bolsas/calcas | C2: 70 | D2: Claudia | F2: 70 | K2: Bolsas/calcas
A3: 2022-06-02 | B3: Gasolina | C3: 200 | D3: Julio | E3: 200 | K3: Gasolina
A4: 2022-06-23 | B4: Gasolina | C4: 400 | D4: Julio | E4: 400 | K4: Proveedor Torreon
A5: 2022-06-23 | B5: Proveedor Torreon | C5: 27250 | D5: Julio | E5: 27250
A6: 2022-06-28 | B6: Proveedor Torreon | C6: 9025 | D6: Julio | E6: 9025
A7: 2022-07-10 | B7: Gasolina | C7: 700 | D7: Julio | E7: 700
C8: =SUM(Gastos[Monto]) -> 37645 | E8: =SUBTOTAL(109,Gastos[Transferencia]) -> 37575 | F8: =SUBTOTAL(109,Gastos[[Efectvivo ]]) -> 70

Sheet Deudores
A1: Fecha | B1: Pendientes de pago | C1: Concepto | D1: Cantidad
A2: =TODAY() -> 2022-09-06 | B2: Paulina | C2: IPLAY | D2: 260
A3: =TODAY() -> 2022-09-06
D4: =SUM(Deudores[Cantidad]) -> 260

Sheet Caja&Banco
A1: Fecha | B1: Socio | C1: Concepto | D1: Tranferencia | E1: Efectivo | H1: IPLAY MAX | I1: Concepto
A2: =TODAY() -> 2022-09-06 | B2: Julio | C2: Deudores | D2: =-SUM(Deudores!D2:D3) -> -260 | I2: Bolsas/calcas
A3: 2022-04-24 | B3: Julio | C3: IPLAY MAX | D3: 260 | I3: Depsocito de Gdl | L3: Etiquetas de fila | M3: Suma de Total
A4: 2022-04-24 | B4: Julio | C4: IPLAY MAX | D4: 260 | I4: Deudores | L4: Deudores | M4: -260
A5: 2022-04-24 | B5: Claudia | C5: IPLAY MAX | E5: 260 | I5: Gasolina | L5: IPLAY MAX | M5: 42675
A6: 2022-04-26 | B6: Claudia | C6: IPLAY MAX | E6: 260 | I6: IPLAY MAX | L6: Proveedor Torreon | M6: -36275
A7: 2022-04-26 | B7: Claudia | C7: IPLAY MAX | E7: 260 | I7: Proveedor Torreon | L7: Bolsas/calcas | M7: -70
A8: 2022-04-26 | B8: Claudia | C8: Bolsas/calcas | E8: -70 | I8: Tranferencia gdl | L8: Tranferencia gdl | M8: -32020
A9: 2022-04-27 | B9: Claudia | C9: IPLAY MAX | E9: 240 | L9: Gasolina | M9: -1300
A10: 2022-04-29 | B10: Julio | C10: IPLAY MAX | D10: 260 | L10: Depsocito de Gdl | M10: 27250
A11: 2022-04-30 | B11: Julio | C11: IPLAY MAX | D11: 200 | L11: Total general | M11: 0
A12: 2022-05-05 | B12: Julio | C12: IPLAY MAX | D12: 240
A13: 2022-05-06 | B13: Claudia | C13: IPLAY MAX | E13: 260
A14: 2022-05-06 | B14: Julio | C14: IPLAY MAX | D14: 260
A15: 2022-05-06 | B15: Claudia | C15: IPLAY MAX | D15: 260
A16: 2022-05-19 | B16: Julio | C16: IPLAY MAX | E16: 520
A17: 2022-05-19 | B17: Julio | C17: IPLAY MAX | E17: 260
A18: 2022-05-19 | B18: Julio | C18: Tranferencia gdl | D18: -1480
A19: 2022-05-19 | B19: Claudia | C19: Tranferencia gdl | D19: -260
A20: 2022-05-19 | B20: Claudia | C20: Tranferencia gdl | E20: -1210
A21: 2022-06-02 | B21: Julio | C21: IPLAY MAX | D21: 260
A22: 2022-06-02 | B22: Julio | C22: IPLAY MAX | E22: 260
A23: 2022-06-02 | B23: Julio | C23: IPLAY MAX | D23: 260
A24: 2022-06-02 | B24: Julio | C24: IPLAY MAX | D24: 260
A25: 2022-06-02 | B25: Julio | C25: IPLAY MAX | D25: 260
A26: 2022-06-02 | B26: Julio | C26: Gasolina | D26: -200
A27: 2022-06-02 | B27: Julio | C27: IPLAY MAX | E27: 300
A28: 2022-06-02 | B28: Julio | C28: IPLAY MAX | E28: 450
A29: 2022-06-02 | B29: Julio | C29: IPLAY MAX | E29: 300
A30: 2022-06-02 | B30: Julio | C30: IPLAY MAX | E30: 450
A31: 2022-06-02 | B31: Julio | C31: IPLAY MAX | E31: 300
A32: 2022-06-02 | B32: Julio | C32: IPLAY MAX | E32: 450
A33: 2022-06-02 | B33: Julio | C33: IPLAY MAX | E33: 450
A34: 2022-06-02 | B34: Julio | C34: IPLAY MAX | E34: 300
A35: 2022-06-06 | B35: Julio | C35: IPLAY MAX | D35: 1040
A36: 2022-06-06 | B36: Julio | C36: IPLAY MAX | D36: 780
A37: 2022-06-16 | B37: Julio | C37: IPLAY MAX | D37: 260
A38: 2022-06-16 | B38: Julio | C38: IPLAY MAX | D38: 520
A39: 2022-06-16 | B39: Julio | C39: IPLAY MAX | D39: 123
A40: 2022-06-16 | B40: Julio | C40: IPLAY MAX | D40: 780
A41: 2022-06-16 | B41: Julio | C41: IPLAY MAX | D41: 383
A42: 2022-06-16 | B42: Julio | C42: IPLAY MAX | D42: 520
A43: 2022-06-16 | B43: Julio | C43: IPLAY MAX | D43: 123
A44: 2022-06-16 | B44: Julio | C44: IPLAY MAX | D44: 260
A45: 2022-06-17 | B45: Julio | C45: Tranferencia gdl | D45: -9149
A46: 2022-06-17 | B46: Julio | C46: IPLAY MAX | D46: 260
A47: 2022-06-17 | B47: Julio | C47: IPLAY MAX | E47: 520
A48: 2022-06-17 | B48: Julio | C48: IPLAY MAX | E48: 260
A49: 2022-06-23 | B49: Julio | C49: IPLAY MAX | D49: 500
A50: 2022-06-23 | B50: Julio | C50: IPLAY MAX | D50: 240
A51: 2022-06-23 | B51: Julio | C51: IPLAY MAX | D51: 500
A52: 2022-06-23 | B52: Julio | C52: IPLAY MAX | D52: 500
A53: 2022-06-23 | B53: Julio | C53: IPLAY MAX | D53: 123
A54: 2022-06-23 | B54: Julio | C54: IPLAY MAX | E54: 520
A55: 2022-06-23 | B55: Julio | C55: IPLAY MAX | D55: 240
A56: 2022-06-23 | B56: Julio | C56: IPLAY MAX | D56: 500
A57: 2022-06-23 | B57: Julio | C57: IPLAY MAX | D57: 260
A58: 2022-06-23 | B58: Julio | C58: IPLAY MAX | D58: 780
A59: 2022-06-23 | B59: Julio | C59: IPLAY MAX | D59: 123
A60: 2022-06-23 | B60: Julio | C60: Gasolina | D60: -400
A61: 2022-06-23 | B61: Julio | C61: Depsocito de Gdl | D61: 27250
A62: 2022-06-23 | B62: Julio | C62: Proveedor Torreon | D62: -27250
A63: 2022-06-24 | B63: Julio | C63: IPLAY MAX | D63: 465
A64: 2022-06-24 | B64: Julio | C64: IPLAY MAX | D64: 465
A65: 2022-06-24 | B65: Julio | C65: IPLAY MAX | D65: 465
A66: 2022-06-24 | B66: Julio | C66: IPLAY MAX | D66: 465
A67: 2022-06-24 | B67: Julio | C67: IPLAY MAX | D67: 465
A68: 2022-06-24 | B68: Julio | C68: IPLAY MAX | D68: 775
A69: 2022-06-24 | B69: Julio | C69: IPLAY MAX | D69: 620
A70: 2022-06-24 | B70: Julio | C70: IPLAY MAX | D70: 310
A71: 2022-06-24 | B71: Julio | C71: IPLAY MAX | D71: 310
A72: 2022-06-24 | B72: Julio | C72: IPLAY MAX | D72: 310
A73: 2022-06-24 | B73: Julio | C73: IPLAY MAX | D73: 310
A74: 2022-06-24 | B74: Julio | C74: IPLAY MAX | D74: 520
A75: 2022-06-24 | B75: Julio | C75: IPLAY MAX | D75: 260
A76: 2022-06-24 | B76: Julio | C76: IPLAY MAX | D76: 260
A77: 2022-06-24 | B77: Julio | C77: IPLAY MAX | D77: 520
A78: 2022-06-24 | B78: Julio | C78: IPLAY MAX | D78: 520
A79: 2022-06-24 | B79: Julio | C79: IPLAY MAX | D79: 260
A80: 2022-06-24 | B80: Julio | C80: IPLAY MAX | D80: 260
A81: 2022-06-24 | B81: Julio | C81: IPLAY MAX | D81: 260
A82: 2022-06-24 | B82: Julio | C82: IPLAY MAX | D82: 260
A83: 2022-06-27 | B83: Julio | C83: IPLAY MAX | D83: 1560
A84: 2022-06-27 | B84: Julio | C84: IPLAY MAX | D84: 260
A85: 2022-06-27 | B85: Julio | C85: IPLAY MAX | D85: 260
A86: 2022-06-27 | B86: Julio | C86: IPLAY MAX | D86: 520
A87: 2022-06-27 | B87: Julio | C87: IPLAY MAX | D87: 260
A88: 2022-06-27 | B88: Julio | C88: IPLAY MAX | D88: 260
A89: 2022-06-27 | B89: Julio | C89: IPLAY MAX | D89: 260
A90: 2022-06-27 | B90: Julio | C90: IPLAY MAX | D90: 1300
A91: 2022-06-28 | B91: Julio | C91: IPLAY MAX | D91: 520
A92: 2022-06-28 | B92: Julio | C92: IPLAY MAX | D92: 260
A93: 2022-06-28 | B93: Julio | C93: IPLAY MAX | D93: 260
A94: 2022-06-28 | B94: Julio | C94: IPLAY MAX | D94: 260
A95: 2022-06-28 | B95: Julio | C95: Proveedor Torreon | D95: -9025
A96: 2022-07-02 | B96: Julio | C96: IPLAY MAX | D96: 260
A97: 2022-07-02 | B97: Julio | C97: IPLAY MAX | D97: 780
A98: 2022-07-02 | B98: Julio | C98: IPLAY MAX | D98: 260
A99: 2022-07-02 | B99: Julio | C99: IPLAY MAX | D99: 260
A100: 2022-07-02 | B100: Julio | C100: IPLAY MAX | D100: 260
A101: 2022-07-10 | B101: Julio | C101: IPLAY MAX | D101: 1560
A102: 2022-07-10 | B102: Julio | C102: IPLAY MAX | D102: 520
A103: 2022-07-10 | B103: Julio | C103: IPLAY MAX | D103: 1300
A104: 2022-07-10 | B104: Julio | C104: IPLAY MAX | D104: 260
A105: 2022-07-10 | B105: Julio | C105: IPLAY MAX | D105: 260
A106: 2022-07-10 | B106: Julio | C106: IPLAY MAX | D106: 260
A107: 2022-07-10 | B107: Julio | C107: IPLAY MAX | D107: 260
A108: 2022-07-10 | B108: Julio | C108: IPLAY MAX | D108: 520
A109: 2022-07-10 | B109: Julio | C109: IPLAY MAX | D109: 1040
A110: 2022-07-10 | B110: Julio | C110: Gasolina | D110: -700
A111: 2022-07-14 | B111: Julio | C111: IPLAY MAX | D111: 520
A112: 2022-07-14 | B112: Julio | C112: IPLAY MAX | D112: 520
A113: 2022-07-14 | B113: Julio | C113: IPLAY MAX | D113: 260
A114: 2022-07-14 | B114: Julio | C114: IPLAY MAX | D114: 1040
A115: 2022-07-14 | B115: Julio | C115: IPLAY MAX | D115: 260
A116: 2022-08-24 | B116: Julio | C116: Tranferencia gdl | D116: -19921
D117: =SUM(Movimientos[[Tranferencia ]]) -> -5340 | E117: =SUBTOTAL(109,Movimientos[Efectivo]) -> 5340

Sheet Reporte
A2: Gastos | B2: =Gastos[[#Totals],[Monto]] -> 37645 | F2: Inventario
A3: Ventas | B3: =VentasMenudeo[[#Totals],[Venta Total]]+VentasMayoreo[[#Totals],[Ventas Totales]] -> 42675 | F3: 128 | G3: =190*F3 -> 24320
A4: Ingreso | B4: =VLOOKUP('Caja&Banco'!L10,'Caja&Banco'!L4:M10,2,0) -> 27250 | F4: 201 | G4: =F4*270 -> 54270
A5: Utilidad | B5: =B3-B2 -> 5030
A8: Capital Total | B8: =B3+B4 -> 69925
A9: Tranferencia gdl | B9: =VLOOKUP(A9,'Caja&Banco'!L4:M10,2,0) -> -32020
A10: Dinero Total | B10: =B8-B2-(-B9)-Deudores[[#Totals],[Cantidad]] -> 0
A12: Etiquetas de fila | B12: Suma de Tranferencia | C12: Suma de Efectivo | F12: Banco | G12: Efectivo
A13: Julio | B13: -5340 | C13: 5340 | F13: =3490+1300 -> 4790 | G13: 3070
A14: Claudia | B14: 0 | C14: 0
A15: Total general | B15: -5340 | C15: 5340 | D15: =B15+C15 -> 0 | F15: =F13+G13 -> 7860
F17: 8000 | G17: celular
F18: 850 | G18: Plata paulina
F19: 6000 | G19: Mama
F20: 330 | G20: viri
F23: =SUM(F15:F20) -> 23040 | G23: =F23-D15 -> 23040

Sheet Graficas

Sheet Hoja2
A1: Prestamo | B1: 155000
A2: Pago por apertura | B2: 5000
A3: Mensualidad | B3: 1200
B4: =SUM(B1:B3) -> 161200
